{"text_format":"1","workbook":"xlsx","n_sheets":22,"sheets":["Cover Page","Contents","Facility Info","Operational Summary","Operational Data","Perf. Form 1","Energy Form 1","Permit Compliance","Improvements","Public Liasion","CO2 N2O","Residue Quality ","Water","Air (periodic)","Air (CEMS)","HCl","SO2","NOx","TOC","Particulates","CO 0.5hourly","CO 95% 10 min"],"not_rendered":{"charts":7,"images":3,"macros":1,"external_links":0,"defined_names":22,"comments":0,"pivot_tables":0},"unopened":[],"bounds":{"document_bytes":16777216,"sheet_cells":100000,"rows_first":2000,"rows_last":500,"rows_between":2000,"halvings":0,"cell_chars":16384,"cell_head_chars":4096},"cells_cut":0,"cells_raw":0,"read":"whole","date_system":"1900"}

{"sheet":"Cover Page","index":0,"n_rows":54,"n_cols":14,"rows_kept":54,"cut":false,"hidden":false,"merged":[[49,2,49,3],[49,6,49,8],[53,2,53,3],[36,1,36,8],[40,2,40,8],[42,2,42,4],[44,2,44,4],[46,2,46,3],[46,6,47,8],[13,13,18,15],[34,1,34,8],[0,3,5,6],[7,1,23,8],[28,1,28,8],[30,1,30,8],[32,1,32,8]]}
[null,null,null,"Add company logo"]
[null,null,null,null,null,null,null,null,null,null,null,null,null,"Version 22.3  30/11/22"]
[]
[]
[]
[]
[]
[null,"Add photo"]
[]
[]
[]
[]
[null,null,null,null,null,null,null,null,null,null,null,null,null,"Notes:"]
[null,null,null,null,null,null,null,null,null,null,null,null,null,"This template may require adjustments by individual operators to meet specific reporting requirements as defined in the site Permit(s)"]
[]
[]
[]
[]
[]
[]
[]
[]
[]
[]
[]
[]
[]
[]
[null,"Annual Performance Report 2022"]
[]
[null,"Permit EPR/WP3239SJ"]
[]
[null,"Tyseley Energy from Waste Plant"]
[]
[]
[]
[null,"Veolia ES Birmingham Limited "]
[]
[null,"Year:",2022]
[]
[null,"Address:","James Road, Tyseley, Birmingham, B11 2BA"]
[]
[null,"Tel: ","0203 567 3742"]
[]
[null,"Email: ","christine.skaramaga@veolia.com"]
[]
[null,"Prepared by:","Christine Skaramaga",null,null,"Position:","Senior Environmental Engineer"]
[]
[]
[null,"Approved by:","Mark Gilsenan",null,null,"Position:","Plant Manager"]
[]
[null,"Version:",1]
[]
[null,"Issue Date:","2023-01-26"]

{"sheet":"Contents","index":1,"n_rows":44,"n_cols":11,"rows_kept":44,"cut":false,"hidden":false,"merged":[[43,0,46,9],[36,1,36,6],[37,1,37,6],[38,1,38,6],[39,1,39,6],[40,1,40,6],[41,1,41,6],[35,1,35,6],[22,1,22,6],[23,1,23,6],[26,1,26,6],[27,1,27,6],[28,1,28,6],[29,1,29,6],[30,1,30,6],[31,1,31,6],[34,1,34,6],[21,1,21,6],[9,1,9,6],[10,1,10,6],[11,1,11,6],[13,1,13,6],[14,1,14,6],[15,1,15,6],[16,1,16,6],[17,1,17,6],[18,1,18,6],[19,1,19,6],[20,1,20,6],[12,1,12,6],[4,10,7,14],[8,1,8,6],[3,1,3,6],[4,1,4,6],[5,1,5,6],[6,1,6,6],[7,1,7,6]]}
[{"$f":"+'Cover Page'!$B$29","v":"Annual Performance Report 2022"},null,null,null,{"$f":"+'Cover Page'!$B$33","v":"Tyseley Energy from Waste Plant"}]
[]
["Contents",null,null,null,null,null,null,null,null,null,"Notes:"]
["Section","Subject",null,null,null,null,null,"Page ",null,null,"Section references and Page nos. to be inserted"]
[null,"Facility Information",null,null,null,null,null,3,null,null,"Sections and Subjects may require adjustment by individual operators to meet specific reporting requirements as defined in the sites Permit(s)"]
[null,"Operational Summary",null,null,null,null,null,4]
[null,"Operational Data",null,null,null,null,null,5]
[null,"Performance Form 1",null,null,null,null,null,7]
[null,"Energy Form 1",null,null,null,null,null,8]
[null,"Permit Compliance",null,null,null,null,null,9]
[null,"Improvements",null,null,null,null,null,10]
[null,"Public Liasion",null,null,null,null,null,11]
[null,"Carbon dioxide and nitrous oxide emissions",null,null,null,null,null,12]
[null,"Residue Quality ",null,null,null,null,null,14]
[null,"Emissions to Water",null,null,null,null,null,15]
[null,"Emissions to Air (periodically monitored)",null,null,null,null,null,16]
[null,"Emissions to Air (continuously monitored)",null,null,null,null,null,17]
[null,"Hydrogen Chloride emissions",null,null,null,null,null,18]
[null,"Sulphur Dioxdie emsissions",null,null,null,null,null,19]
[null,"Oxides of Notrigen emissions",null,null,null,null,null,20]
[null,"Total Organic Carbon emissions",null,null,null,null,null,21]
[null,"Particulate Matter emissions",null,null,null,null,null,22]
[null,"Carbon Monoxide emissions",null,null,null,null,null,23]
[]
[]
["Version Control"]
["Section","Information",null,null,null,null,null,"Date"]
[]
[]
[]
[]
[]
[]
["Distribution"]
["Copy","Name, Role",null,null,null,null,null,"No."]
[1,"Sarah Dennis, EA Installations Technical Leader",null,null,null,null,null,1]
[]
[]
[]
[]
[]
[]
[]
["This report is required under the Industrial Emissions Directive’s Article 55(2) requirements on reporting and public information on waste incineration plants and co-incineration plants, which require the operator to produce an annual report on the functioning and monitoring of the plant and make it available to the public. "]

{"sheet":"Facility Info","index":2,"n_rows":22,"n_cols":11,"rows_kept":22,"cut":false,"hidden":false,"merged":[[4,0,17,8],[21,0,53,8],[4,10,13,13],[21,10,30,13]]}
[{"$f":"+'Cover Page'!$B$29","v":"Annual Performance Report 2022"},null,null,null,{"$f":"+'Cover Page'!$B$33","v":"Tyseley Energy from Waste Plant"}]
[]
["Plant Description and Design",null,null,null,null,null,null,null,null,null,"Notes:"]
[]
["The main purpose of the activity carried out at this facility is to incinerate, primarily, Municipal Solid Waste (MSW) as defined by EWC 20 03 01, recovering energy in the form of steam and electricity generating 27 MW for export to the National Grid. \n\nThe permit covers the site and the entire incineration process which includes all incineration lines, waste reception and storage, waste-fuel and air supply systems, boilers, facilities for the treatment of exhaust gases, on-site facilities for handling and storage of residues and operations, recording and monitoring conditions.",null,null,null,null,null,null,null,null,null,"Include summary of plant design, design capacity, no. of combustion lines, electrical and heat capacity and any other general information that descibes the facility, its location and purpose "]
[]
[]
[]
[]
[]
[]
[]
[]
[]
[]
[]
[]
[]
[]
["Summary of Operational Processes and Procedures"]
[]
["This facility consists of two incineration lines, each capable of processing approximately 23.5 tonnes per hour, which takes approximately 350,000 tonnes of Birmingham’s waste each year but this, is dependent on two factors: actual operating hours and calorific value of the waste being burnt.\n\nThe third incineration line processes clinical waste and other designated hazardous wastes (CWI) at a nominal rate of 600kg/hour.\nAll emissions to air from the two 80m high chimneys are controlled to meet the emission limits included in the Environmental Permit. the flue gases released into the atmosphere are continuously monitored for Particulate Matter (total), TOC, Hydrogen Chloride, Oxides of Nitrogen, Carbon Monoxide, Ammonia and Sulphur Dioxide.          \nBi-annual check monitoring of this equipment is carried out by approved contractors using indepent extractive sampling methods, at which time emissions of Metals, Dioxins and other substances are also monitored.\nThe Continious Emissions Monitoring equipment (CEMs) was in service during 2020 for 100% of the plant operating time. This equipment is stringently monitored with routine calibration checks and is standardised to BS EN14181:2004. \nHalf hourly (10 minute for CO) and daily average emission data for continuously monitored emissions is supplied to the Environment Agency on a monthly basis.",null,null,null,null,null,null,null,null,null,"Include summary of key processes and procedures such as (but not limited to); waste reception, control rooms, grate, bed and bolier, energy & heat  generation, cooling systems, residue management, emission controls, health and safety systems, maintenance"]

{"sheet":"Operational Summary","index":3,"n_rows":31,"n_cols":11,"rows_kept":31,"cut":false,"hidden":false,"merged":[[4,0,26,8],[30,0,51,8],[4,10,13,13],[30,10,39,13]]}
[{"$f":"+'Cover Page'!$B$29","v":"Annual Performance Report 2022"},null,null,null,{"$f":"+'Cover Page'!$B$33","v":"Tyseley Energy from Waste Plant"}]
[]
["Summary of Plant Operations and Maintenance during the reporting year",null,null,null,null,null,null,null,null,null,"Notes:"]
[]
["Annual outage\nFeed chute slope steel work replaced with new\nReplacement of feeder boxes and wear plates\nAir heaters inspected & cleaned\nGeneral maintenance on grates and chiller tubes\nBurners inpsected & serviced\nInstrument calibrations across the boiler\nReplacement of furnace to second pass joggle tubes\nFurnace replacement of damaged and missing tiles\nInconel overlay work in furnace roof\nInspection of boiler tubes & NDT carried out\nBoiler drum end replacement lagging\nReplacement of pressure relief valve on steam drum\nAD & bottom ash conveyor deep clean & inspection\nAsh siftings system cleaned & inspected, repairs in areas needed\nReactor tower cleaning and replacement of the ash conveyor & denseveyor system\nBaghouse inspection, socks changed, plate work & door hinges replacement where required\nExpansion joint between ID fan & stack replaced\nElectrical inspections in MCC board & switch gear, transformer 1, ID & FD fans\nElectrical motor checks for ID, PA, SA fans, feed pumps & condensate pumps\nContinious emissions monitoring system replacement\n",null,null,null,null,null,null,null,null,null,"Include summary of key operational and/or mainteanance activity undertaken in the year, such as any major component upgrades and/or replacements "]
[]
[]
[]
[]
[]
[]
[]
[]
[]
[]
[]
[]
[]
[]
[]
[]
[]
[]
[]
[]
[]
[]
[]
["Summary of Residue Handling for the reporting year"]
[]
["Ash residues (known as Incinerator Bottom Ash or IBA) are currently sent to Castle Bromwich for reprocessing. This material is reprocessed by extracting further ferrous and non-ferrous metals and by crushing, trommelling and screening to produce a graded, quality material that is useable as substitute aggregate in such applications as road building.\nFerrous metal removed from the IBA is sent to a steel manufacturer for recycling.\nFiner particulate matter, know as Air Pollution Control (APC) residues, removed from the flue gases by fabric filter is collected and sent to the Minosus Hazardous Waste underground storage facility in Cheshire or to Empire Works, a Veolia facility, for treatment.",null,null,null,null,null,null,null,null,null,"Include in here a summary of residue handling regimes and destinations "]

{"sheet":"Operational Data","index":4,"n_rows":61,"n_cols":11,"rows_kept":61,"cut":false,"hidden":false,"merged":[[48,0,52,0],[5,10,6,10],[7,10,18,10],[33,1,36,1],[3,1,3,2],[7,1,19,1],[23,1,26,1],[28,1,29,1]]}
[{"$f":"+'Cover Page'!$B$29","v":"Annual Performance Report 2022"},null,null,null,{"$f":"+'Cover Page'!$B$33","v":"Tyseley Energy from Waste Plant"}]
[]
["Operational Data",null,null,null,null,null,null,null,null,null,"Notes:"]
["Plant Size",440500,null,"tonnes pa",null,"MWth",null,"MWe",null,null,"* - RDF to include SRF "]
["No. of combustion lines",2,null,"No. of Turbines:",null,1,null,null,null,null,"** - CHP plants only"]
[null,null,null,null,null,null,null,null,null,null,"2020 updates include;  heat in MWh, water in Litres, NCV in MJ/kg"]
["Waste types received","Unit","Q1","Q2","Q3","Q4","Year Total","%"]
["Household / Local Authority","tonnes",91147.7,83130.48,92361.37,90528.23,{"$f":"SUM(C8:F8)","v":357167.77999999997},{"$f":"IF(G8>0,G8/$G$18,\"-\")","v":0.97778931349603471},null,null,"Availabiity Definition: 'the availability of a line is to be calculated by the number of hours the line reported Continuously Monitored emission levels to the Regulator through the calendar year divided by the total number of hours in that year. \nThe overall plant availability is calculated as the Mean of all lines in the plant. For clarity this includes periods of Other Than Normal Operating Conditions (OTNOC) and abnormal operation.'  \n\nRationale: The primary function of an Energy from Waste facility is the disposal of waste. It follows therefore that the availability of a plant is determined by the period of time a facility spends undertaking this activity."]
["Commercial & Industrial ",null,120.14,561.84,471.15,1411.9,{"$f":"SUM(C9:F9)","v":2565.0300000000002},7.022074955352172E-3]
["Hazardous ",null,828.17,889.81,800.88,813.61,3332.4700000000003,9.1230333081727902E-3]
["Clinical",null,417.62,524.26,574.85,698.91,2215.64,6.0655782404402617E-3]
["Waste wood (biomass) ",null,null,null,null,null,0,"-"]
["Refuse Derived Fuel * - H'hold/LA",null,null,null,null,null,{"$f":"SUM(C13:F13)","v":0},"-"]
["Refuse Derived Fuel *  - C&I",null,null,null,null,null,0,"-"]
["Other [Please specify]",null,null,null,null,null,0,"-"]
["Other [Please specify]"]
["Other [Please specify]"]
["Total waste received",null,{"$f":"SUM(C8:C17)","v":92513.62999999999},{"$f":"SUM(D8:D17)","v":85106.389999999985},{"$f":"SUM(E8:E17)","v":94208.25},{"$f":"SUM(F8:F17)","v":93452.65},{"$f":"SUM(G8:G17)","v":365280.92},{"$f":"IF(G18>0,G18/$G$18,\"-\")","v":1}]
["Rejected Waste ",null,null,null,null,null,{"$f":"SUM(C19:F19)","v":0},{"$f":"IF(G19>0,G19/$G$18,\"-\")","v":"-"}]
["Unprocessed waste transferred out",null,null,null,null,null,{"$f":"SUM(C20:F20)","v":0},{"$f":"IF(G20>0,G20/$G$18,\"-\")","v":"-"}]
["Total waste combusted",null,93846.023029896387,85159.460714285742,97274.599999999962,99637.72000000003,{"$f":"SUM(C21:F21)","v":375917.80374418211},{"$f":"IF(G21>0,G21/$G$18,\"-\")","v":1.0291197354194741}]
[]
["Energy Useage / Export","Unit","Q1","Q2","Q3","Q4","Year Total","KWh/te"]
["Power Generated","MWh",54755,43407,55781,57518,{"$f":"SUM(C24:F24)","v":211461},{"$f":"IF(G24>0,G24*1000/$G$21,\"-\")","v":562.51924727646713}]
["Power Exported",null,47867,37416,48594,50336,{"$f":"SUM(C25:F25)","v":184213},{"$f":"IF(G25>0,G25*1000/$G$21,\"-\")","v":490.03531667087469}]
["Power Used on site",null,{"$f":"(C24+C27)-C25","v":6888},{"$f":"(D24+D27)-D25","v":6555.6331250000003},{"$f":"(E24+E27)-E25","v":7209.5},{"$f":"(F24+F27)-F25","v":7182},{"$f":"SUM(C26:F26)","v":27835.133125},{"$f":"IF(G26>0,G26*1000/$G$21,\"-\")","v":74.04579630908421}]
["Power Imported",null,0,564.63312499999995,22.5,0,{"$f":"SUM(C27:F27)","v":587.13312499999995},{"$f":"IF(G27>0,G27*1000/$G$21,\"-\")","v":1.5618657034918015}]
["Parasitic Load","%",{"$f":"IF(C24>0,1-C25/(C24+C27),\"-\")","v":0.12579673089215593},{"$f":"IF(D24>0,1-D25/(D24+D27),\"-\")","v":0.14908777907711612},{"$f":"IF(E24>0,1-E25/(E24+E27),\"-\")","v":0.12919440536883886},{"$f":"IF(F24>0,1-F25/(F24+F27),\"-\")","v":0.12486525957091688},{"$f":"IF(G24>0,1-G25/(G24+G27),\"-\")","v":0.13126799427463709}]
["Thermal Energy Produced **","MWh",null,null,null,null,{"$f":"SUM(C29:F29)","v":0},{"$f":"IF(G29>0,G29*1000/$G$21,\"-\")","v":"-"}]
["Thermal Energy Exported **",null,null,null,null,null,{"$f":"SUM(C30:F30)","v":0},{"$f":"IF(G30>0,G30*1000/$G$21,\"-\")","v":"-"}]
["R1 value (if applicable)"]
[]
["Waste Disposal & Recovery","Unit","Q1","Q2","Q3","Q4","Year Total","% inputs"]
["APC Residues - produced","tonnes",2165.6,2080.52,2192.9,2269.9,{"$f":"SUM(C34:F34)","v":8708.92},{"$f":"IF(G34>0,G34/$G$21,\"-\")","v":2.3167085765181145E-2}]
["IBA - produced",null,19462,18650.2,19424.68,19615.34,{"$f":"SUM(C35:F35)","v":77152.22},{"$f":"IF(G35>0,G35/$G$21,\"-\")","v":0.20523694071298437}]
["Metals recycling",null,767.42,654.78,1005.66,951.59,{"$f":"SUM(C36:F36)","v":3379.45},{"$f":"IF(G36>0,G36/$G$21,\"-\")","v":8.9898641839793458E-3}]
["Wooden packaging",null,0,30.96,20.32,32.96,{"$f":"SUM(C37:F37)","v":84.240000000000009},{"$f":"IF(G37>0,G37/$G$21,\"-\")","v":2.2409154118522846E-4}]
[]
["Raw Material Usage","Unit","Q1","Q2","Q3","Q4","Year Total","kg or Ltr /te"]
["Mains Water","m3",41113,36990,39938,41415,{"$f":"SUM(C40:F40)","v":159456},{"$f":"IF(G40>0,G40*1000/$G$21,\"-\")","v":424.17783465374862}]
["Other Water","m3",0,3300,0,253.02774193548402,3553.0277419354838,{"$f":"IF(G41>0,G41*1000/$G$21,\"-\")","v":9.4516080551305155}]
["Ammonia","kgs",50760.000000000007,43896,76496,111180,282332,{"$f":"IF(G42>0,G42/$G$21,\"-\")","v":0.75104716293812812}]
["Activated Carbon","kgs",38752,32096.000000000004,38752,33344,142944,{"$f":"IF(G43>0,G43/$G$21,\"-\")","v":0.38025333883168677}]
["Lime / hydrated lime","kgs",553000,541000,620000,556000,2270000,{"$f":"IF(G44>0,G44/$G$21,\"-\")","v":6.0385541131347162}]
["Fuel oil","ltrs",70156,275051,249763,348407,943377,{"$f":"IF(G45>0,G45/$G$21,\"-\")","v":2.509529983958894}]
["Gas","cf",0,0,0,0,0]
[]
["Summary ","Line/Unit","Q1","Q2","Q3","Q4","Year Total",null,null,"Hrs in year "]
["Availability of waste combustion by line, hrs",1,2090,1763,2126,2154,{"$f":"SUM(C49:F49)","v":8133},{"$f":"G49/$J$49","v":0.92842465753424652},null,8760]
[null,2,1973,1878,2140,2121,8112,{"$f":"G50/$J$49","v":0.92602739726027394}]
[null,3,null,null,null,null,0,0]
[null,4,null,null,null,null,0,0]
[null,5,null,null,null,null,{"$f":"SUM(C53:F53)","v":0},0]
["Overall Availability, mean avg. of all lines, hrs",null,{"$f":"AVERAGE(C49:C50)","v":2031.5},{"$f":"AVERAGE(D49:D50)","v":1820.5},{"$f":"AVERAGE(E49:E50)","v":2133},{"$f":"AVERAGE(F49:F50)","v":2137.5},{"$f":"AVERAGE(G49:G50)","v":8122.5},0.92722602739726023]
["Hours of turbine operations, hrs",1,2160,2027.9499999999998,2194,2208,8589.9500000000007,0.9805878995433791]
[]
["Hours of heat / steam export",null,null,null,null,null,0,{"$f":"IF(B57>0,G56/J49,\"n/a\")","v":"n/a"}]
["Net Calorific Value of waste","MJ/kg",null,null,null,null,null,"-"]
["Abnormal Events","qty.",null,null,null,null,0,{"$f":"IF(G59>0,\"yes\",\"no\")","v":"no"}]
["Abnormal operation","hours",null,null,null,null,0,{"$f":"+(G60)/J49","v":0}]
["Permit Breaches","qty.",null,null,null,null,0,{"$f":"IF(G61>0,\"yes\",\"no\")","v":"no"}]

{"sheet":"Perf. Form 1","index":5,"n_rows":54,"n_cols":10,"rows_kept":54,"cut":false,"hidden":false,"merged":[[47,0,47,1],[49,0,49,9],[50,0,51,9],[38,0,38,9],[39,0,40,9],[43,0,43,1],[43,2,43,9],[45,0,45,1],[46,0,46,1],[36,0,36,3],[36,4,36,5],[36,7,36,8],[37,0,37,3],[37,4,37,5],[37,7,37,8],[34,0,34,3],[34,4,34,5],[34,7,34,8],[35,0,35,3],[35,4,35,5],[35,7,35,8],[31,0,31,3],[31,7,31,8],[32,0,32,3],[32,4,32,5],[32,7,32,8],[33,0,33,3],[33,4,33,5],[33,7,33,8],[23,0,23,3],[23,4,23,5],[23,6,23,7],[23,8,23,9],[25,0,25,9],[26,0,28,9],[21,0,21,1],[21,2,21,3],[21,4,21,5],[21,6,21,7],[21,8,21,9],[22,0,22,3],[22,4,22,5],[22,6,22,7],[22,8,22,9],[19,0,19,1],[19,2,19,3],[19,4,19,5],[19,6,19,7],[19,8,19,9],[20,0,20,1],[20,2,20,3],[20,4,20,5],[20,6,20,7],[20,8,20,9],[17,0,17,1],[17,2,17,3],[17,4,17,5],[17,6,17,7],[17,8,17,9],[18,0,18,1],[18,2,18,3],[18,4,18,5],[18,6,18,7],[18,8,18,9],[15,0,15,1],[15,2,15,3],[15,4,15,5],[15,6,15,7],[15,8,15,9],[16,0,16,9],[13,0,13,1],[13,2,13,3],[13,4,13,5],[13,6,13,7],[13,8,13,9],[14,0,14,3],[14,4,14,5],[14,6,14,7],[14,8,14,9],[11,0,11,1],[11,2,11,3],[11,4,11,5],[11,6,11,7],[11,8,11,9],[12,0,12,1],[12,2,12,3],[12,4,12,5],[12,6,12,7],[12,8,12,9],[9,0,9,9],[10,0,10,1],[10,2,10,3],[10,4,10,5],[10,6,10,7],[10,8,10,9],[2,0,2,4],[2,6,2,8],[3,1,3,4],[5,3,5,4],[5,6,5,7],[8,0,8,1],[8,2,8,3],[8,4,8,5],[8,6,8,7],[8,8,8,9]]}
[{"$f":"+'Cover Page'!C39","v":2022}," Annual Reporting Performance Form 1"]
[]
[{"$f":"+'Cover Page'!B31","v":"Permit EPR/WP3239SJ"},null,null,null,null,"Operator: ",{"$f":"+'Cover Page'!B37","v":"Veolia ES Birmingham Limited "}]
["Facility:",{"$f":"+'Cover Page'!B33:I33","v":"Tyseley Energy from Waste Plant"},null,null,null,"Form:","Performance 1"]
[]
["Reporting  Period from: ",null,null,"2022-01-01",null,"to:","2022-12-31"]
[]
[{"$f":"+A1","v":2022},"Annual Reporting of Waste Disposal and Recovery"]
["Waste Description",null,"Disposal Route(s)",null,"Disposal Tonnes",null,"Recovery Tonnes",null,"% / tonne of waste incinerated"]
["1) Hazardous Wastes"]
["APC Residues",null,"D05 / D09",null,{"$f":"'Operational Data'!G34","v":8708.92},null,null,null,{"$f":"IF((E11+G11)>0,(E11+G11)/'Operational Data'!$G$21, \"-\")","v":2.3167085765181145E-2}]
["IBA",null,null,null,null,null,null,null,{"$f":"IF((E12+G12)>0,(E12+G12)/'Operational Data'!$G$21, \"-\")","v":"-"}]
["Interceptor waste",null,"D09",null,{"$f":"'Operational Data'!#REF!","v":{"$error":"#REF!"}},null,null,null,{"$f":"IF((E13+G13)>0,(E13+G13)/'Operational Data'!$G$21, \"-\")","v":{"$error":"#REF!"}}]
["Slag",null,"D10",null,{"$f":"'Operational Data'!#REF!","v":{"$error":"#REF!"}},null,null,null,{"$f":"IF((E14+G14)>0,(E14+G14)/'Operational Data'!$G$21, \"-\")","v":{"$error":"#REF!"}}]
["Total Hazardous Waste",null,null,null,{"$f":"SUM(E11:F14)","v":{"$error":"#REF!"}},null,{"$f":"SUM(G11:H14)","v":0},null,{"$f":"IF((E15+G15)>0,(E15+G15)/'Operational Data'!$G$21, \"-\")","v":{"$error":"#REF!"}}]
[]
["2) Non-Hazardous Wastes"]
["IBA",null,"R11",null,null,null,{"$f":"'Operational Data'!G35","v":77152.22},null,{"$f":"IF((E18+G18)>0,(E18+G18)/'Operational Data'!$G$21, \"-\")","v":0.20523694071298437}]
["Ferrous Metal",null,"R04",null,null,null,{"$f":"'Operational Data'!G36","v":3379.45},null,{"$f":"IF((E19+G19)>0,(E19+G19)/'Operational Data'!$G$21, \"-\")","v":8.9898641839793458E-3}]
["Wooden packaging",null,"R03 / R05",null,null,null,{"$f":"'Operational Data'!G37","v":84.240000000000009},null,{"$f":"IF((E20+G20)>0,(E20+G20)/'Operational Data'!$G$21, \"-\")","v":2.2409154118522846E-4}]
[null,null,null,null,null,null,null,null,{"$f":"IF((E21+G21)>0,(E21+G21)/'Operational Data'!$G$21, \"-\")","v":"-"}]
[null,null,null,null,null,null,null,null,{"$f":"IF((E22+G22)>0,(E22+G22)/'Operational Data'!$G$21, \"-\")","v":"-"}]
["Total Non-Hazardous Waste",null,null,null,{"$f":"SUM(E18:F22)","v":0},null,{"$f":"SUM(G18:H22)","v":80615.91},null,{"$f":"IF((E23+G23)>0,(E23+G23)/'Operational Data'!$G$21, \"-\")","v":0.21445089643814896}]
["TOTAL WASTE",null,null,null,{"$f":"+E23+E15","v":{"$error":"#REF!"}},null,{"$f":"+G23+G15","v":80615.91},null,{"$f":"IF((E24+G24)>0,(E24+G24)/'Operational Data'!$G$21, \"-\")","v":{"$error":"#REF!"}}]
[]
["Operator’s comments :"]
[]
[]
[]
[]
[{"$f":"+A1","v":2022},"Annual Reporting of Water and Other Raw Material Usage"]
["Raw Material",null,null,null,"Usage",null,"Unit","Specific Useage",null,"Unit"]
["Mains Water",null,null,null,{"$f":"+'Operational Data'!G40","v":159456},null,"m3",{"$f":"IF(E33>0,E33/'Operational Data'!$G$21,\"-\")","v":0.42417783465374864},null,"m3/te"]
["Total Water",null,null,null,{"$f":"+'Operational Data'!G41+'Operational Data'!G40","v":163009.02774193548},null,"m3",{"$f":"IF(E34>0,E34/'Operational Data'!$G$21,\"-\")","v":0.43362944270887915},null,"m3/te"]
["Urea / Ammonia",null,null,null,{"$f":"+'Operational Data'!G42","v":282332},null,"kg",{"$f":"IF(E35>0,E35/'Operational Data'!$G$21,\"-\")","v":0.75104716293812812},null,"kg/te"]
["Activated Carbon",null,null,null,{"$f":"+'Operational Data'!G43","v":142944},null,"kg",{"$f":"IF(E36>0,E36/'Operational Data'!$G$21,\"-\")","v":0.38025333883168677},null,"kg/te"]
["Lime / hydrated lime / Sodium Bicarb.",null,null,null,{"$f":"+'Operational Data'!G44","v":2270000},null,"kg",{"$f":"IF(E37>0,E37/'Operational Data'!$G$21,\"-\")","v":6.0385541131347162},null,"kg/te"]
[]
["Operator’s comments :"]
[]
[]
[]
[{"$f":"+A31","v":2022},"Annual Reporting of other performance indicators "]
["Parameter",null,"Results by Line"]
[null,null,"A1","A2","A3","A4","A5",null,"Turbine 1","Turbine 2"]
["Operating hours for the year, hours",null,{"$f":"'Operational Data'!G49","v":8133},{"$f":"'Operational Data'!G50","v":8112},null,null,null,null,{"$f":"'Operational Data'!G55","v":8589.9500000000007}]
["Number of periods of abnormal operation, qty."]
["Cumulative hours of abnormal operation for this year, hours"]
[]
["Operator’s comments :"]
[]
[]
[]
["Signed: ","Mark Gilsenan",null,null,null,null,"Date:","2023-01-26"]

{"sheet":"Energy Form 1","index":6,"n_rows":29,"n_cols":8,"rows_kept":29,"cut":false,"hidden":false,"merged":[[15,0,15,2],[15,3,15,4],[15,6,15,8],[17,0,17,8],[18,0,24,8],[13,0,13,2],[13,3,13,4],[13,6,13,8],[14,0,14,2],[14,3,14,4],[14,6,14,8],[11,0,11,2],[11,3,11,4],[11,6,11,8],[12,0,12,2],[12,3,12,4],[12,6,12,8],[9,0,9,2],[9,3,9,4],[9,6,9,8],[10,0,10,2],[10,3,10,4],[10,6,10,8],[2,6,2,8],[4,1,4,4],[6,3,6,4],[6,6,6,7],[8,0,8,2],[8,3,8,4],[8,6,8,8]]}
[{"$f":"+'Cover Page'!C39","v":2022}," Annual Reporting of Energy Usage/Export"]
[]
[{"$f":"+'Cover Page'!B31","v":"Permit EPR/WP3239SJ"},null,null,null,null,"Operator: ",{"$f":"+'Cover Page'!B37","v":"Veolia ES Birmingham Limited "}]
[]
["Facility:",{"$f":"+'Cover Page'!B33:I33","v":"Tyseley Energy from Waste Plant"},null,null,null,"Form:","Energy 1"]
[]
["Reporting  Period from: ",null,null,{"$f":"+'Perf. Form 1'!D6:E6","v":"2022-01-01"},null,"to:",{"$f":"+'Perf. Form 1'!G6:H6","v":"2022-12-31"}]
[]
["Energy Source",null,null,"Energy Usage",null,"Unit","Specific Useage (KWh/tonne incinerated"]
["Electricity Produced",null,null,{"$f":"+'Operational Data'!G24","v":211461},null,"MWh",{"$f":"+'Operational Data'!H24","v":562.51924727646713}]
["Electricity Imported   ",null,null,{"$f":"+'Operational Data'!G27","v":587.13312499999995},null,"MWh",{"$f":"+'Operational Data'!H27","v":1.5618657034918015}]
["Electricity Exported",null,null,{"$f":"+'Operational Data'!G25","v":184213},null,"MWh",{"$f":"+'Operational Data'!H25","v":490.03531667087469}]
["Gas Oil",null,null,{"$f":"'Operational Data'!G45","v":943377},null,"tonnes",{"$f":"'Operational Data'!H45","v":2.509529983958894}]
["Steam/hot water exported",null,null,{"$f":"+'Operational Data'!G30","v":0},null,"GWh",{"$f":"+'Operational Data'!H30","v":"-"}]
[]
[]
[]
["Operator’s comments :"]
[]
[]
[]
[]
[]
[]
[]
[]
[]
[]
["Signed: ","Mark Gilsenan",null,null,null,null,"Date:","2023-01-26"]

{"sheet":"Permit Compliance","index":7,"n_rows":34,"n_cols":12,"rows_kept":34,"cut":false,"hidden":false,"merged":[[26,0,26,10],[18,0,18,10],[31,1,31,3],[31,4,31,6],[31,7,31,9],[27,1,27,3],[27,4,27,6],[27,7,27,9],[28,1,28,3],[28,4,28,6],[28,7,28,9],[23,1,23,3],[23,4,23,6],[23,7,23,9],[24,1,24,3],[24,4,24,6],[32,1,32,3],[32,4,32,6],[32,7,32,9],[29,1,29,3],[29,4,29,6],[29,7,29,9],[30,1,30,3],[30,4,30,6],[30,7,30,9],[24,7,24,9],[21,1,21,3],[21,4,21,6],[21,7,21,9],[22,1,22,3],[22,4,22,6],[22,7,22,9],[19,1,19,3],[19,4,19,6],[19,7,19,9],[20,1,20,3],[20,4,20,6],[20,7,20,9],[16,2,16,4],[16,5,16,8],[15,2,15,4],[15,5,15,8],[16,0,16,1],[13,5,13,8],[14,0,14,1],[14,2,14,4],[14,5,14,8],[15,0,15,1],[7,0,7,1],[7,2,7,8],[8,0,8,1],[8,2,8,4],[8,5,8,8],[8,11,17,14],[33,4,33,8],[9,0,9,1],[9,2,9,4],[9,5,9,8],[10,0,10,1],[10,2,10,4],[10,5,10,8],[11,0,11,1],[11,2,11,4],[11,5,11,8],[12,0,12,1],[12,2,12,4],[12,5,12,8],[13,0,13,1],[13,2,13,4]]}
[{"$f":"+'Cover Page'!$B$29","v":"Annual Performance Report 2022"},null,null,null,{"$f":"+'Cover Page'!$B$33","v":"Tyseley Energy from Waste Plant"}]
[]
["Summary of Permit Compliance"]
[]
["Compliance with permit limits for continuously monitored pollutants"]
[]
["The plant met its emission limits as shown in the table below:"]
["Substance",null,"Percentage time compliant during operation",null,null,null,null,null,null,null,null,"Notes:"]
[null,null,"Half-hourly limit",null,null,"Daily limit",null,null,null,null,null,"Report to 2 decimal places, i.e. xx.xx%\n\nPlease provide a brief summary of each notification or non-compliance in the table (rather than just referring to notifications that were sent to the Regulator).  \n\n"]
["Particulates",null,1,null,null,1]
["Oxides of nitrogen",null,1,null,null,1]
["Sulphur dioxide",null,1,null,null,1]
["Carbon monoxide",null,"100% or \n100% 95% of 10-min averages",null,null,1]
["Total organic carbon",null,1,null,null,1]
["Hydrogen chloride",null,1,null,null,1]
["Hydrogen fluoride",null,1,null,null,1]
[null,null,1,null,null,1]
[]
["Summary of any notifications or non-compliances under the permit"]
["Date","Summary of notification or non-compliance [including Line/Reference]",null,null,"Reason ",null,null,"Measures taken to prevent reoccurrence"]
[]
[]
[]
[]
[]
[]
["Summary of any complaints received and actions to taken to resolve them."]
["Date","Summary of complaint [including Line/Reference]",null,null,"Reason *",null,null,"Measures taken to prevent reoccurrence"]
[]
[]
[]
[]
[]
[null,null,null,null,"* including whether substantiated by the operator or the EA"]

{"sheet":"Improvements","index":8,"n_rows":39,"n_cols":5,"rows_kept":39,"cut":false,"hidden":false,"merged":[[37,0,37,8],[38,0,47,8],[4,0,4,8],[5,0,13,8],[15,0,15,8],[16,0,24,8],[26,0,26,8],[27,0,35,8]]}
[{"$f":"+'Cover Page'!$B$29","v":"Annual Performance Report 2022"},null,null,null,{"$f":"+'Cover Page'!$B$33","v":"Tyseley Energy from Waste Plant"}]
[]
["Summary of Plant Improvements"]
[]
["Summary of any efficiency improvements that have been completed within the year."]
["n/a"]
[]
[]
[]
[]
[]
[]
[]
[]
[]
["Summary of any permit improvement conditions that have been completed within the year and the resulting environmental benefits."]
["n/a"]
[]
[]
[]
[]
[]
[]
[]
[]
[]
["Summary of any changes to the plant or operating techniques which required a variation to the permit and a summary of the resulting environmental impact."]
["n/a"]
[]
[]
[]
[]
[]
[]
[]
[]
[]
["Summary of any other improvements made to the plant or planned to be made and a summary of the resulting environmental benefits."]
["n/a"]

{"sheet":"Public Liasion","index":9,"n_rows":29,"n_cols":5,"rows_kept":29,"cut":false,"hidden":false,"merged":[[23,0,24,1],[23,2,24,8],[25,0,26,1],[25,2,26,8],[28,0,28,8],[17,0,18,1],[17,2,18,8],[19,0,20,1],[19,2,20,8],[21,0,22,1],[21,2,22,8],[16,0,16,1],[16,2,16,8],[5,0,5,1],[5,2,5,8],[6,0,7,1],[6,2,7,8],[8,0,9,1],[8,2,9,8],[10,0,11,1],[10,2,11,8],[12,0,13,1],[12,2,13,8],[15,0,15,8]]}
[{"$f":"+'Cover Page'!$B$29","v":"Annual Performance Report 2022"},null,null,null,{"$f":"+'Cover Page'!$B$33","v":"Tyseley Energy from Waste Plant"}]
[]
["Details of Public & Stakeholder Liasion"]
[]
["Summary of events held during the reporting year."]
["Date",null,"Description"]
["Bi-monthly",null,"Meetings with Birmingham City Council"]
[]
[]
[]
[]
[]
[]
[]
[]
["List of events planned for next year"]
["Date",null,"Description"]
["Bi-monthly",null,"Meetings with Birmingham City Council"]
[]
[]
[]
[]
[]
[]
[]
[]
[]
[]
["If you wish to be involved in the public liasion programme, please contact _________________"]

{"sheet":"CO2 N2O","index":10,"n_rows":22,"n_cols":5,"rows_kept":22,"cut":false,"hidden":false,"merged":[[22,0,23,2],[4,0,4,2],[8,1,8,2],[10,0,10,2],[12,1,12,2],[15,0,15,2],[17,1,17,2],[19,4,19,14],[17,4,17,14],[12,4,12,14],[8,4,8,14],[19,1,19,2]]}
[{"$f":"+'Cover Page'!$B$29","v":"Annual Performance Report 2022"},null,{"$f":"+'Cover Page'!$B$33","v":"Tyseley Energy from Waste Plant"}]
[]
["Carbon dioxide emissions and biogenic content of waste inputs",null,null,null,"Notes:"]
[]
["Carbon dioxide emissions (all types of plant)"]
["Annual mass of carbon dioxide released","x tonnes ",310766]
["Annual mass of carbon dioxide released per tonne of waste burned","x tonnes ",{"$f":"C6/'Operational Data'!G21","v":0.82668603855613365}]
["Annual mass of carbon dioxide released per MWh of energy exported","x tonnes ",{"$f":"C6/'Operational Data'!G25","v":1.6869927746684545}]
["Description of how annual carbon dioxide mass emission has been calculated","CEM data",null,null,"Note 1: Where available, data from CO2 CEMS should be used. Otherwise, where no CEMS data is available, a suitable emissions factor should be used based on the tonnage of waste burned e.g.0.992 tCO2/t waste as per Tolvik report 2021, or other justified emissions factor  - refer to embedded Environment Agency guidance note above or updated version for suitable descriptive text."]
[]
["Nitrous oxide emissions (only plants which use ammonia or urea to abate NOx emissions)"]
["Annual mass emissions of nitrous oxide","x tonnes ",5.9]
["Description of how annual nitrous oxide mass emission has been calculated","CEM data",null,null,"Note 2: Where available, data from N2O CEMS should be used, or if no CEMS data is available, from periodic monitoring. Otherwise, a suitable emissions factor should be used based on the tonnage of waste burned e.g. 0.0981 kgN20/t waste as per 2021 Pollution Inventory data for plants with urea-based SNCR - refer to embedded Environment Agency guidance note above or updated version for suitable descriptive text."]
["Total annual carbon dioxide and nitrous oxide emissions as carbon dioxide equivalent (whereby 1 t nitrous oxide is equivalent to 298 t carbon dioxide)","x tonnes CO2e",{"$f":"(C12*298)+C6","v":312524.2}]
[]
["Biogenic fraction of the waste and biogenic CO2 emissions (only plants burning residual municipal waste, refuse derived fuel or solid recovered fuel)"]
["Yearly average biogenic percentage of the waste by net calorific value (NCV)",0.51800000000000002,{"$f":"'Operational Data'!G21*0.518","v":194725.42233948634}]
["Description of how biogenic NCV percentage has been calculated or estimated","2017 WRAP data",null,null,"Note 3: Where available, data from waste sampling should be used; otherwise, an estimated figure with justification can be used, or a figure assumed on the basis of a national average e.g. 2017 WRAP data for residual waste of 51.8% biogenic energy content - refer to embedded Environment Agency guidance note above or updated version for suitable descriptive text, quoting standards where relevant. "]
["Percentage of total carbon dioxide emissions arising from biogenic waste",0.51800000000000002,{"$f":"'Operational Data'!G21*0.518","v":194725.42233948634}]
["Description of how percentage biogenic carbon dioxide emissions have been calculated","2017 WRAP data",null,null,"Note 4: Examples include direct measurement via C14 method or BIOMA software - refer to embedded Environment Agency guidance note above or updated version for suitable descriptive text, quoting standards where relevant. Otherwise, as an approximation (and in lieu of any more accurate metrics which may be developed in future), the measured or estimated biogenic fraction by net calorific value can be assumed to be the same as the biogenic CO2 fraction of the total CO2 emissions from the plant. "]
[]
["Comments:"]

{"sheet":"Residue Quality ","index":11,"n_rows":36,"n_cols":9,"rows_kept":36,"cut":false,"hidden":false,"merged":[[36,0,41,9],[33,3,33,7],[35,0,35,9],[30,0,30,1],[31,0,31,1],[32,0,32,1],[33,0,33,1],[31,3,31,7],[30,8,30,9],[31,8,31,9],[32,8,32,9],[33,8,33,9],[20,0,21,1],[20,2,21,9],[22,0,23,1],[22,2,23,9],[32,3,32,7],[28,3,28,7],[28,8,28,9],[27,3,27,9],[26,0,26,9],[27,0,29,1],[27,2,29,2],[5,0,6,9],[7,0,8,9],[9,0,10,9],[14,0,15,1],[14,2,15,9],[16,0,17,1],[16,2,17,9],[18,0,19,1],[18,2,19,9],[12,0,12,9],[13,0,13,1],[13,2,13,9]]}
[{"$f":"+'Cover Page'!$B$29","v":"Annual Performance Report 2022"},null,null,null,null,null,null,{"$f":"+'Cover Page'!$B$33","v":"Tyseley Energy from Waste Plant"}]
[]
["Residue Quality Monitoring Requirements"]
[]
["Summary of monitoring undertaken and compliance"]
["As per permit requirements "]
[]
[]
[]
[]
[]
[]
["Commentary on any specific events"]
["Date & Event",null,"Description"]
[]
[]
[]
[]
[]
[]
[]
[]
[]
[]
[]
[]
["Residue Quality Monitoring Results"]
["Parameter (unit) ",null,"Limit","Normal Operation "]
[null,null,null,"Bottom ash  ",null,null,null,null,"APC Residues"]
[null,null,null,"Q1","Q2","Q3","Q4","Average"]
["Loss on Ignition (average %)",null,"<5%",2.3199999999999998,2.84,3.38,2.7,{"$f":"AVERAGE(D31:G31)","v":2.8099999999999996}]
["Total Organic Carbon (average %)",null,"<3%"]
["No. of Assessments Undertaken",null,"---"]
["No. of Hazardous Results",null,"---"]
[]
["Comments :"]

{"sheet":"Water","index":12,"n_rows":39,"n_cols":12,"rows_kept":39,"cut":false,"hidden":false,"merged":[[38,0,38,2],[38,3,38,4],[35,0,35,2],[35,3,35,4],[36,0,36,2],[36,3,36,4],[37,0,37,2],[37,3,37,4],[23,0,23,2],[23,3,23,4],[24,0,24,2],[24,3,24,4],[26,0,26,2],[26,3,26,4],[25,0,25,2],[25,3,25,4],[21,0,21,8],[22,0,22,2],[22,3,22,4],[14,0,15,1],[14,2,15,8],[16,0,17,1],[16,2,17,8],[18,0,19,1],[18,2,19,8],[5,0,6,8],[7,0,8,8],[9,0,10,8],[12,0,12,8],[13,0,13,1],[13,2,13,8],[30,0,30,2],[34,3,34,4],[27,3,27,4],[28,3,28,4],[29,3,29,4],[31,3,31,4],[33,3,33,4],[30,3,30,4],[33,0,33,2],[34,0,34,2],[27,0,27,2],[28,0,28,2],[29,0,29,2],[31,0,31,2],[32,0,32,2]]}
[{"$f":"+'Cover Page'!$B$29","v":"Annual Performance Report 2022"},null,null,null,{"$f":"+'Cover Page'!$B$33","v":"Tyseley Energy from Waste Plant"}]
[]
["Emissions to Water"]
[]
["Summary of monitoring undertaken and compliance"]
["As per Severn Trent Consent to discharge of trade effluent to public foul sewer"]
[]
[]
[]
[]
[]
[]
["Commentary on any specific events"]
["Date & Event",null,"Description"]
[]
[]
[]
[]
[]
[]
[]
["Emissions to Water / Sewer"]
["Parameter",null,null,"Monitoring Frequency",null,"Limit","Target","Max.","Average"]
["Outlet 1"]
["SULPHATE",null,null,"Periodic",null,1500,null,{"$f":"MAX(K25:L25)","v":1260},{"$f":"AVERAGE(K25:L25)","v":1072},null,884,1260]
["CHRIOMIUM (Cr)",null,null,"Periodic",null,5,null,{"$f":"MAX(K26:L26)","v":0.3},{"$f":"AVERAGE(K26:L26)","v":0.17599999999999999},null,0.3,5.1999999999999998E-2]
["COPPER (Cu)",null,null,"Periodic",null,5,null,0.55000000000000004,0.33,null,0.55000000000000004,0.11]
["LEAD (Pb)",null,null,"Periodic",null,5,null,0.36,0.22299999999999998,null,0.36,8.5999999999999993E-2]
["NICKEL (Ni)",null,null,"Periodic",null,5,null,6.5000000000000002E-2,6.3E-2,null,6.0999999999999999E-2,6.5000000000000002E-2]
["ZINC (Zn)",null,null,"Periodic",null,10,null,2,1.3599999999999999,null,2,0.72]
["SULPHIDE as S",null,null,"Periodic",null,1,null,8.7900000000000006E-2,8.7900000000000006E-2,null,null,8.7900000000000006E-2]
["pH",null,null,"Periodic",null,12.5,null,12,10.6,null,12,9.1999999999999993]
["Outlet 2"]
["CHRIOMIUM (Cr)",null,null,"Periodic",null,5]
["COPPER (Cu)",null,null,"Periodic",null,5]
["LEAD (Pb)",null,null,"Periodic",null,5]
["NICKEL (Ni)",null,null,"Periodic",null,5]
["ZINC (Zn)",null,null,"Periodic",null,10]
["pH",null,null,"Periodic",null,12.5]

{"sheet":"Air (periodic)","index":13,"n_rows":41,"n_cols":14,"rows_kept":41,"cut":false,"hidden":false,"merged":[[18,3,18,4],[29,3,29,4],[35,3,35,4],[19,3,19,4],[20,3,20,4],[21,3,21,4],[24,3,24,4],[25,3,25,4],[26,3,26,4],[33,3,33,4],[27,3,27,4],[28,3,28,4],[30,3,30,4],[22,3,22,4],[23,3,23,4],[13,3,13,4],[14,3,14,4],[15,3,15,4],[16,3,16,4],[17,3,17,4],[40,0,40,10],[19,0,19,1],[20,0,20,1],[21,0,21,1],[36,3,36,4],[37,3,37,4],[35,0,35,1],[36,0,36,1],[37,0,37,1],[38,0,38,1],[26,0,26,1],[34,3,34,4],[22,0,22,1],[23,0,23,1],[41,0,42,10],[27,0,27,1],[28,0,28,1],[24,0,24,1],[25,0,25,1],[39,0,39,1],[29,0,29,1],[30,0,30,1],[31,0,31,1],[32,0,32,1],[33,0,33,1],[34,0,34,1],[39,3,39,4],[31,3,31,4],[32,3,32,4],[38,3,38,4],[16,0,16,1],[17,0,17,1],[18,0,18,1],[13,0,13,1],[14,0,14,1],[15,0,15,1],[12,0,12,1],[11,3,11,4],[12,3,12,4],[9,0,10,1],[9,3,10,4],[9,2,10,2],[5,13,8,16],[9,13,11,16],[8,0,8,10],[5,0,6,10],[11,0,11,1],[9,5,9,8],[9,9,9,10]]}
[{"$f":"+'Cover Page'!$B$29","v":"Annual Performance Report 2022"},null,null,null,{"$f":"+'Cover Page'!$B$33","v":"Tyseley Energy from Waste Plant"}]
[]
["Emissions to Air (periodically monitored)"]
[]
["Summary of monitoring undertaken, standards used and compliance",null,null,null,null,null,null,null,null,null,null,null,null,"Notes:"]
["As per permit requirments",null,null,null,null,null,null,null,null,null,null,null,null,"Template may require adjustment for any bespoke monitoring requirements of permit. "]
[]
[]
["Results of emissions to air that are periodically monitored"]
["Substance",null,"Ref. Period","Emission Limit Value",null,null,null,null,null,"Average",null,null,null,"User to add additional tables as necessary, depending on whether quarterly or bi-annual reporting is required for the compliance year"]
[null,null,null,null,null,"A1 (Q1)","A1 (Q3)","A2 (Q1)","A2 (Q3)","A1","A2"]
["Hydrogen fluoride",null,"1 hr","2 mg/m3",null,0.04,0.06,0.04,0.05,{"$f":"AVERAGE(F12:G12)","v":0.05},{"$f":"AVERAGE(H12:I12)","v":4.4999999999999998E-2}]
["Cd and Th and their compounds",null,"6-8hrs","0.05 mg/m3",null,7.7999999999999999E-4,6.2E-4,7.6000000000000004E-4,7.6000000000000004E-4,{"$f":"AVERAGE(F13:G13)","v":6.9999999999999999E-4},{"$f":"AVERAGE(H13:I13)","v":7.6000000000000004E-4}]
["Hg and its compounds",null,"6-8hrs","0.05 mg/m3",null,3.6000000000000002E-4,2.5999999999999998E-4,2.8E-3,5.7999999999999996E-3,3.1E-4,4.3E-3]
["Sb, As, Pb, Cr, Co, Cu, Mn, Ni, V and their compounds",null,"6-8hrs","0.5 mg/m3",null,0.1,1.9E-2,1.2999999999999999E-2,4.8000000000000001E-2,5.9500000000000004E-2,3.0499999999999999E-2]
["Dioxins & Furans (I-TEQ)",null,"6-8hrs","0.1 ng/m3",null,5.1999999999999998E-3,5.7999999999999996E-3,5.5999999999999999E-3,1.4999999999999999E-2,5.4999999999999997E-3,1.03E-2]
["PCBs (WHO-TEQ Humans / Mammals)",null,"6-8hrs","None set ng/m3",null,6.9999999999999999E-4,7.9000000000000001E-4,8.4999999999999995E-4,1.4E-3,7.45E-4,1.1249999999999999E-3]
["PCBs (WHO-TEQ Fish)",null,"6-8hrs","None set ng/m3",null,5.1E-5,7.1000000000000005E-5,5.0000000000000002E-5,9.1000000000000003E-5,6.1000000000000005E-5,7.0500000000000006E-5]
["PCBs (WHO-TEQ Birds)",null,"6-8hrs","None set ng/m3",null,7.7999999999999996E-3,1.4999999999999999E-2,4.7999999999999996E-3,0.01,1.14E-2,7.4000000000000003E-3]
["Dioxins & Furans (WHO-TEQ Humans / Mammals)",null,"6-8hrs","None set ng/m3",null,5.5999999999999999E-3,6.1999999999999998E-3,6.4000000000000003E-3,1.6E-2,5.8999999999999999E-3,1.12E-2]
["Dioxins & Furans (WHO-TEQ Fish)",null,"6-8hrs","None set ng/m3",null,4.5999999999999999E-3,5.7000000000000002E-3,6.1999999999999998E-3,1.4999999999999999E-2,5.1500000000000001E-3,1.06E-2]
["Dioxins & Furans (WHO-TEQ Birds)",null,"6-8hrs","None set ng/m3",null,6.4999999999999997E-3,8.6E-3,7.4999999999999997E-3,2.3E-2,7.5499999999999994E-3,1.525E-2]
["Nitrous Oxide (N2O)",null,"1hr","None set mg/m3",null,0.5,1.61,0.26,0.78,1.0550000000000002,0.52]
["Total PAH",null,"6-8hrs","None set µg/m3",null,0.23,0.72,0.23,0.2,0.47499999999999998,0.21500000000000002]
["Anthanthrene",null,"6-8hrs","None set µg/m3",null,1.8E-3,2.2000000000000001E-3,1.6999999999999999E-3,2E-3,2E-3,1.8500000000000001E-3]
["Benzo(a)anthracene",null,"6-8hrs","None set µg/m3",null,1.8E-3,1.4E-2,2.3999999999999998E-3,2E-3,7.9000000000000008E-3,2.1999999999999997E-3]
["Benzo(a)pyrene",null,"6-8hrs","None set µg/m3",null,1.8E-3,2.8999999999999998E-3,2.3999999999999998E-3,2E-3,2.3499999999999997E-3,2.1999999999999997E-3]
["Benzo(b)fluoranthene",null,"6-8hrs","None set µg/m3",null,1.8E-3,1.4999999999999999E-2,3.3E-3,2E-3,8.3999999999999995E-3,2.65E-3]
["Benzo(b)naptho(2,1-d) thiophene",null,"6-8hrs","None set µg/m3",null,2.5999999999999999E-2,2.2000000000000001E-3,1.6999999999999999E-3,2E-3,1.41E-2,1.8500000000000001E-3]
["Benzo(c)phenanthrene",null,"6-8hrs","None set µg/m3",null,1.8E-3,1.6E-2,1.6999999999999999E-3,2.3E-3,8.8999999999999999E-3,2E-3]
["Benzo(ghi)perylene",null,"6-8hrs","None set µg/m3",null,3.3E-3,1.2999999999999999E-2,1.4999999999999999E-2,8.9999999999999993E-3,8.1499999999999993E-3,1.2E-2]
["Benzo(k)fluoranthene",null,"6-8hrs","None set µg/m3",null,1.8E-3,6.1999999999999998E-3,1.6999999999999999E-3,2E-3,4.0000000000000001E-3,1.8500000000000001E-3]
["Cholanthrene",null,"6-8hrs","None set µg/m3",null,1.8E-3,2.2000000000000001E-3,1.6999999999999999E-3,2E-3,2E-3,1.8500000000000001E-3]
["Chrysene",null,"6-8hrs","None set µg/m3",null,1.9E-3,5.2999999999999999E-2,3.3999999999999998E-3,4.8999999999999998E-3,2.7449999999999999E-2,4.15E-3]
["Cyclopenta(cd)pyrene",null,"6-8hrs","None set µg/m3",null,1.8E-3,1.0999999999999999E-2,4.1999999999999997E-3,2E-3,6.3999999999999994E-3,3.0999999999999999E-3]
["Dibenzo(ai)pyrene",null,"6-8hrs","None set µg/m3",null,1.8E-3,2.2000000000000001E-3,1.6999999999999999E-3,2E-3,2E-3,1.8500000000000001E-3]
["Dibenzo(ah)anthracene",null,"6-8hrs","None set µg/m3",null,1.8E-3,2.2000000000000001E-3,1.6999999999999999E-3,2E-3,2E-3,1.8500000000000001E-3]
["Fluoranthene",null,"6-8hrs","None set µg/m3",null,2.8000000000000001E-2,0.45,7.2999999999999995E-2,4.2999999999999997E-2,0.23900000000000002,5.7999999999999996E-2]
["Indeno(123-cd) pyrene",null,"6-8hrs","None set µg/m3",null,1.8E-3,3.3E-3,3.3999999999999998E-3,2E-3,2.5500000000000002E-3,2.7000000000000001E-3]
["Naphthalene",null,"6-8hrs","None set µg/m3",null,0.15,0.12,0.11,0.12,0.13500000000000001,0.11499999999999999]
["Comments :"]

{"sheet":"Air (CEMS)","index":14,"n_rows":29,"n_cols":16,"rows_kept":29,"cut":false,"hidden":false,"merged":[[15,0,16,0],[17,0,18,0],[13,0,14,0],[5,0,6,12],[7,0,8,12],[10,0,10,12],[11,0,12,0],[11,2,12,2],[11,1,12,1],[11,3,11,4],[11,5,11,6],[11,7,11,8],[11,9,11,10],[11,11,11,12],[19,0,20,0],[21,0,22,0],[23,0,25,0],[26,0,26,12],[28,0,29,12]]}
[{"$f":"+'Cover Page'!$B$29","v":"Annual Performance Report 2022"},null,null,null,null,null,null,null,{"$f":"+'Cover Page'!$B$33","v":"Tyseley Energy from Waste Plant"}]
[]
["Emissions to Air (continously monitored)"]
[null,null,null,null,null,null,null,null,null,null,null,null,null,null,null,"Notes:"]
["Summary of monitoring undertaken, standards used and compliance",null,null,null,null,null,null,null,null,null,null,null,null,null,null,"Template may require adjustment for any bespoke monitoring requirements of permit"]
["MCERT CEM System",null,null,null,null,null,null,null,null,null,null,null,null,null,null,"Report to 2 decimal places, i.e. xx.xx%"]
[]
[]
[]
[]
["Results of emissions to air that are continuously monitored (maximum and average values for each line)"]
["Substance","Reference Period","Emission Limit Value","A1",null,"A2",null,"A3",null,"A4",null,"A5"]
[null,null,null,"Max.","Avg.","Max.","Avg.","Max.","Avg.","Max.","Avg.","Max.","Avg."]
["Oxides of nitrogen","Daily mean","200 mg/m3 ",{"$f":"NOx!O19","v":184.74},{"$f":"NOx!N19","v":163.22999999999999},{"$f":"NOx!O34","v":184.06},{"$f":"NOx!N34","v":165.68250000000003}]
[null,"½ hourly mean","400 mg/m3 ",{"$f":"NOx!M19","v":319},{"$f":"NOx!L19","v":163.09333333333333},{"$f":"NOx!M34","v":313.2},{"$f":"NOx!L34","v":165.69250000000002}]
["Particulates","Daily mean","10 mg/m3",{"$f":"Particulates!O19","v":9.31},{"$f":"Particulates!N19","v":1.8437500000000002},{"$f":"Particulates!O34","v":4.9400000000000004},{"$f":"Particulates!N34","v":0.36875000000000008}]
[null,"½ hourly mean","30 mg/m3 ",{"$f":"Particulates!M19","v":26.9},{"$f":"Particulates!L19","v":1.8566666666666667},{"$f":"Particulates!M34","v":15.7},{"$f":"Particulates!L34","v":0.37583333333333341}]
["Total Organic Carbon ","Daily mean","10 mg/m3 ",{"$f":"TOC!O19","v":1.6},{"$f":"TOC!N19","v":0.40875},{"$f":"TOC!O34","v":4.3},{"$f":"TOC!N34","v":0.59166666666666679}]
[null,"½ hourly mean","20 mg/m3 ",{"$f":"TOC!M19","v":7.14},{"$f":"TOC!L19","v":0.43583333333333335},{"$f":"TOC!M34","v":14.3},{"$f":"TOC!L34","v":0.62083333333333335}]
["Hydrogen chloride ","Daily mean","10 mg/m3 ",{"$f":"HCl!O19","v":9.3000000000000007},{"$f":"HCl!N19","v":6.387083333333333},{"$f":"HCl!O34","v":8.8699999999999992},{"$f":"HCl!N34","v":6.3987499999999997}]
[null,"½ hourly mean","60 mg/m3 ",{"$f":"HCl!M19","v":56.9},{"$f":"HCl!L19","v":6.418333333333333},{"$f":"HCl!M34","v":57.9},{"$f":"HCl!L34","v":6.4458333333333329}]
["Sulphur dioxide","Daily mean","50 mg/m3 ",{"$f":"'SO2'!O19","v":27.7},{"$f":"'SO2'!N19","v":6.6470833333333319},{"$f":"'SO2'!O34","v":33.85},{"$f":"'SO2'!N34","v":11.584999999999996}]
[null,"½ hourly mean","200 mg/m3 ",{"$f":"'SO2'!M19","v":180.8},{"$f":"'SO2'!L19","v":6.5866666666666669},{"$f":"'SO2'!M34","v":175.7},{"$f":"'SO2'!L34","v":11.549166666666665}]
["Carbon monoxide ","Daily mean","50 mg/m3 ",{"$f":"'CO 95% 10 min'!Q19","v":26.8},{"$f":"'CO 95% 10 min'!P19","v":9.9016666666666655},{"$f":"'CO 95% 10 min'!Q34","v":32.76},{"$f":"'CO 95% 10 min'!P34","v":11.758333333333333}]
[null,"½ hourly mean *","100 mg/m3 *"]
[null,"95%ile 10-min avg *","150 mg/m3 *",{"$f":"'CO 95% 10 min'!M19","v":62.333333333333343},{"$f":"'CO 95% 10 min'!N19","v":9.7958333333333325},{"$f":"'CO 95% 10 min'!M34","v":60.31666666666667},{"$f":"'CO 95% 10 min'!N34","v":11.778333333333334}]
["* = delete or amend as appropriate"]
["Comments :"]
["The CEM data submitted from May to December 2022 have not been subject to BS EN 14181:2014 QAL2 calibration. The report will be re-submitted\n to the Environment Agency with the calibrated data once those are available therefore the data submitted above in this report are subject to change."]

{"sheet":"HCl","index":15,"n_rows":79,"n_cols":17,"rows_kept":79,"cut":false,"hidden":false,"merged":[[12,16,15,18],[51,9,63,9],[66,9,78,9],[4,9,4,14],[4,1,4,3],[4,4,4,6],[48,0,51,6],[47,0,47,6],[6,9,18,9],[21,9,33,9],[36,9,48,9],[3,16,7,18],[9,16,11,18]]}
[{"$f":"+'Cover Page'!$B$29","v":"Annual Performance Report 2022"},null,null,null,{"$f":"+'Cover Page'!$B$33","v":"Tyseley Energy from Waste Plant"}]
[]
["Monitoring of Hydrogen Chloride emissions",null,null,"Whole Installation",null,null,"See  Notes in Cell Q3",null,null,{"$f":"+A3","v":"Monitoring of Hydrogen Chloride emissions"},null,null,null,"Per Combustion Line",null,null,"Notes:"]
[null,null,null,null,null,null,null,null,null,null,null,null,null,null,null,null,"User to add logic to complete Whole installation, Table A5:G18. From the data in Per Combustion Line, Table J6:O79, subject to No. of lines installed"]
["mg/Nm3","1/2 Hourly Reference Periods",null,null,"Daily Reference Periods"]
[{"$f":"+'Cover Page'!C39","v":2022},"1/2 hourly HCl ELV","Monthly 1/2 hourly mean","Highest 1/2 hourly maximum","Daily HCl ELV","Monthly daily mean","Highest daily maximum",null,null,{"$f":"+A6","v":2022},"mg/Nm3","Monthly 1/2 hourly mean","Monthly 1/2 hourly maximum","Monthly daily mean","Monthly daily maximum"]
["Jan",60,{"$f":"AVERAGE(L7,L22)","v":6.96},{"$f":"MAX(M7,M22)","v":31.42},10,{"$f":"AVERAGE(N7,N22)","v":6.9399999999999995},{"$f":"MAX(O7,O22)","v":8.8699999999999992},null,null,"A1","Jan",6.92,27.55,6.88,7.67]
["Feb",60,{"$f":"AVERAGE(L8,L23)","v":6.5749999999999993},{"$f":"MAX(M8,M23)","v":53.24},10,{"$f":"AVERAGE(N8,N23)","v":6.5749999999999993},{"$f":"MAX(O8,O23)","v":8.7100000000000009},null,null,null,"Feb",6.81,53.24,6.81,8.7100000000000009]
["Mar",60,5.8049999999999997,40.36,10,5.8449999999999998,7.51,null,null,null,"Mar",5.92,23.54,5.92,7.23,null,"Whole Installation table A5:G18:"]
["Apr",60,6.4450000000000003,49.88,10,6.4550000000000001,8.14,null,null,null,"Apr",6.07,36.96,6.09,7.69,null,"Mean: for 1/2 hourly and daily periods calculate mean of values across all operational combustion lines for the month"]
["May",60,6,45.2,10,5.9,8.1,null,null,null,"May",6,33.9,5.9450000000000003,7.4]
["Jun",60,5.8,55.2,10,5.7,7.9,null,null,null,"Jun",6.1,55.2,6,7.6]
["Jul",60,6.4499999999999993,57.9,10,6.4499999999999993,9.3000000000000007,null,null,null,"Jul",6.6,56.9,6.6,9.3000000000000007,null,"Maximum: for 1/2 hourly and daily periods use the highest value across all operational combustion lines for the month"]
["Aug",60,6.6999999999999993,48.4,10,6.6,9.3000000000000007,null,null,null,"Aug",6.6,34.200000000000003,6.6,9.3000000000000007]
["Sep",60,6.8,31.5,10,6.75,7.9,null,null,null,"Sep",6.8,31.5,6.8,7.9]
["Oct",60,6.95,34.5,10,6.9,7.9,null,null,null,"Oct",6.9,34.5,6.8,7.6]
["Nov",60,6.35,32.4,10,6.3000000000000007,7.5,null,null,null,"Nov",6.2,21.2,6.2,7.1]
["Dec",60,6.35,46.6,10,6.3,7.7,null,null,null,"Dec",6.1,46.6,6,7.7]
[null,null,null,null,null,null,null,null,null,null,"Annual",{"$f":"AVERAGE(L7:L18)","v":6.418333333333333},{"$f":"MAX(M7:M18)","v":56.9},{"$f":"AVERAGE(N7:N18)","v":6.387083333333333},{"$f":"MAX(O7:O18)","v":9.3000000000000007}]
[]
[null,null,null,null,null,null,null,null,null,{"$f":"+A6","v":2022},"mg/Nm3","Monthly 1/2 hourly mean","Monthly 1/2 hourly maximum","Monthly daily mean","Monthly daily maximum"]
[null,null,null,null,null,null,null,null,null,"A2","Jan",7,31.42,7,8.8699999999999992]
[null,null,null,null,null,null,null,null,null,null,"Feb",6.34,40.770000000000003,6.34,7.47]
[null,null,null,null,null,null,null,null,null,null,"Mar",5.69,40.36,5.77,7.51]
[null,null,null,null,null,null,null,null,null,null,"Apr",6.82,49.88,6.82,8.14]
[null,null,null,null,null,null,null,null,null,null,"May",6,45.2,5.8550000000000004,8.1]
[null,null,null,null,null,null,null,null,null,null,"Jun",5.5,42.4,5.4,7.9]
[null,null,null,null,null,null,null,null,null,null,"Jul",6.3,57.9,6.3,8.3000000000000007]
[null,null,null,null,null,null,null,null,null,null,"Aug",6.8,48.4,6.6,7.9]
[null,null,null,null,null,null,null,null,null,null,"Sep",6.8,29.4,6.7,7.9]
[null,null,null,null,null,null,null,null,null,null,"Oct",7,28.3,7,7.9]
[null,null,null,null,null,null,null,null,null,null,"Nov",6.5,32.4,6.4,7.5]
[null,null,null,null,null,null,null,null,null,null,"Dec",6.6,29.5,6.6,7.4]
[null,null,null,null,null,null,null,null,null,null,"Annual",{"$f":"AVERAGE(L22:L33)","v":6.4458333333333329},{"$f":"MAX(M22:M33)","v":57.9},{"$f":"AVERAGE(N22:N33)","v":6.3987499999999997},{"$f":"MAX(O22:O33)","v":8.8699999999999992}]
[]
[null,null,null,null,null,null,null,null,null,{"$f":"+A6","v":2022},"mg/Nm3","Monthly 1/2 hourly mean","Monthly 1/2 hourly maximum","Monthly daily mean","Monthly daily maximum"]
[null,null,null,null,null,null,null,null,null,"A3","Jan"]
[null,null,null,null,null,null,null,null,null,null,"Feb"]
[null,null,null,null,null,null,null,null,null,null,"Mar"]
[null,null,null,null,null,null,null,null,null,null,"Apr"]
[null,null,null,null,null,null,null,null,null,null,"May"]
[null,null,null,null,null,null,null,null,null,null,"Jun"]
[null,null,null,null,null,null,null,null,null,null,"Jul"]
[null,null,null,null,null,null,null,null,null,null,"Aug"]
[null,null,null,null,null,null,null,null,null,null,"Sep"]
[null,null,null,null,null,null,null,null,null,null,"Oct"]
[null,null,null,null,null,null,null,null,null,null,"Nov"]
["Comments :",null,null,null,null,null,null,null,null,null,"Dec"]
["The CEM data submitted from May to December 2022 have not been subject to BS EN 14181:2014 QAL2 calibration. The report will be re-submitted to the Environment Agency with the calibrated data once those are available therefore the data submitted above in this report are subject to change.",null,null,null,null,null,null,null,null,null,"Annual",{"$f":"AVERAGE(L37:L48)","v":{"$error":"#DIV/0!"}},{"$f":"MAX(M37:M48)","v":0},{"$f":"AVERAGE(N37:N48)","v":{"$error":"#DIV/0!"}},{"$f":"MAX(O37:O48)","v":0}]
[]
[null,null,null,null,null,null,null,null,null,{"$f":"+A6","v":2022},"mg/Nm3","Monthly 1/2 hourly mean","Monthly 1/2 hourly maximum","Monthly daily mean","Monthly daily maximum"]
[null,null,null,null,null,null,null,null,null,"A4","Jan"]
[null,null,null,null,null,null,null,null,null,null,"Feb"]
[null,null,null,null,null,null,null,null,null,null,"Mar"]
[null,null,null,null,null,null,null,null,null,null,"Apr"]
[null,null,null,null,null,null,null,null,null,null,"May"]
[null,null,null,null,null,null,null,null,null,null,"Jun"]
[null,null,null,null,null,null,null,null,null,null,"Jul"]
[null,null,null,null,null,null,null,null,null,null,"Aug"]
[null,null,null,null,null,null,null,null,null,null,"Sep"]
[null,null,null,null,null,null,null,null,null,null,"Oct"]
[null,null,null,null,null,null,null,null,null,null,"Nov"]
[null,null,null,null,null,null,null,null,null,null,"Dec"]
[null,null,null,null,null,null,null,null,null,null,"Annual",{"$f":"AVERAGE(L52:L63)","v":{"$error":"#DIV/0!"}},{"$f":"MAX(M52:M63)","v":0},{"$f":"AVERAGE(N52:N63)","v":{"$error":"#DIV/0!"}},{"$f":"MAX(O52:O63)","v":0}]
[]
[null,null,null,null,null,null,null,null,null,{"$f":"+A6","v":2022},"mg/Nm3","Monthly 1/2 hourly mean","Monthly 1/2 hourly maximum","Monthly daily mean","Monthly daily maximum"]
[null,null,null,null,null,null,null,null,null,"A5","Jan"]
[null,null,null,null,null,null,null,null,null,null,"Feb"]
[null,null,null,null,null,null,null,null,null,null,"Mar"]
[null,null,null,null,null,null,null,null,null,null,"Apr"]
[null,null,null,null,null,null,null,null,null,null,"May"]
[null,null,null,null,null,null,null,null,null,null,"Jun"]
[null,null,null,null,null,null,null,null,null,null,"Jul"]
[null,null,null,null,null,null,null,null,null,null,"Aug"]
[null,null,null,null,null,null,null,null,null,null,"Sep"]
[null,null,null,null,null,null,null,null,null,null,"Oct"]
[null,null,null,null,null,null,null,null,null,null,"Nov"]
[null,null,null,null,null,null,null,null,null,null,"Dec"]
[null,null,null,null,null,null,null,null,null,null,"Annual",{"$f":"AVERAGE(L67:L78)","v":{"$error":"#DIV/0!"}},{"$f":"MAX(M67:M78)","v":0},{"$f":"AVERAGE(N67:N78)","v":{"$error":"#DIV/0!"}},{"$f":"MAX(O67:O78)","v":0}]

{"sheet":"SO2","index":16,"n_rows":79,"n_cols":17,"rows_kept":79,"cut":false,"hidden":false,"merged":[[3,16,7,18],[9,16,11,18],[12,16,15,18],[66,9,78,9],[4,1,4,3],[4,4,4,6],[4,9,4,14],[6,9,18,9],[21,9,33,9],[36,9,48,9],[47,0,47,6],[48,0,51,6],[51,9,63,9]]}
[{"$f":"+'Cover Page'!$B$29","v":"Annual Performance Report 2022"},null,null,null,{"$f":"+'Cover Page'!$B$33","v":"Tyseley Energy from Waste Plant"}]
[]
["Monitoring of Sulphur dioxide emissions",null,null,"Whole Installation",null,null,"See  Notes in Cell Q3",null,null,{"$f":"+A3","v":"Monitoring of Sulphur dioxide emissions"},null,null,null,"Per Combustion Line",null,null,"Notes:"]
[null,null,null,null,null,null,null,null,null,null,null,null,null,null,null,null,"User to add logic to complete Whole installation, Table A5:G18. From the data in Per Combustion Line, Table J6:O79, subject to No. of lines installed"]
["mg/Nm3","1/2 Hourly Reference Periods",null,null,"Daily Reference Periods"]
[{"$f":"+'Cover Page'!C39","v":2022},"1/2 hourly SO2 ELV","Monthly 1/2 hourly mean","Highest 1/2 hourly maximum","Daily SO2 ELV","Monthly daily mean","Highest daily maximum",null,null,{"$f":"+A6","v":2022},"mg/Nm3","Monthly 1/2 hourly mean","Monthly 1/2 hourly maximum","Monthly daily mean","Monthly daily maximum"]
["Jan",200,{"$f":"AVERAGE(L7,L22)","v":11.58},{"$f":"MAX(M7,M22)","v":149.94},50,{"$f":"AVERAGE(N7,N22)","v":11.504999999999999},{"$f":"MAX(O7,O22)","v":30.5},null,null,"A1","Jan",7.18,109.06,7.06,16.11]
["Feb",200,{"$f":"AVERAGE(L8,L23)","v":14.25},{"$f":"MAX(M8,M23)","v":145.35},50,{"$f":"AVERAGE(N8,N23)","v":14.255000000000001},{"$f":"MAX(O8,O23)","v":33.85},null,null,null,"Feb",7.71,97.18,7.71,13.44]
["Mar",200,14.945,111.34,50,15.055,30.79,null,null,null,"Mar",7.62,83.12,7.62,16.71,null,"Whole Installation table A5:G18:"]
["Apr",200,15.54,129.87,50,15.545000000000002,33.51,null,null,null,"Apr",9.6300000000000008,106.9,9.65,19.02,null,"Mean: for 1/2 hourly and daily periods calculate mean of values across all operational combustion lines for the month"]
["May",200,10.399999999999999,180.8,50,11.4825,27.7,null,null,null,"May",9.6,180.8,10.824999999999999,27.7]
["Jun",200,10.050000000000001,154.5,50,9.9499999999999993,22.2,null,null,null,"Jun",8.3000000000000007,154.5,8.3000000000000007,20]
["Jul",200,5.5,125.3,50,5.4499999999999993,12.9,null,null,null,"Jul",5.3,106.1,5.3,12.9,null,"Maximum: for 1/2 hourly and daily periods use the highest value across all operational combustion lines for the month"]
["Aug",200,4.3499999999999996,99.4,50,4.25,13.8,null,null,null,"Aug",3.9,99.4,3.8,13.8]
["Sep",200,4.8,134.9,50,4.8,11.3,null,null,null,"Sep",4,104.2,4,9.3000000000000007]
["Oct",200,5.35,125.5,50,5.3,10.9,null,null,null,"Oct",5,109.7,5,10.8]
["Nov",200,5.35,162.69999999999999,50,5.2,11.1,null,null,null,"Nov",5.0999999999999996,162.69999999999999,5,8.6999999999999993]
["Dec",200,6.7,172,50,6.6,16.2,null,null,null,"Dec",5.7,172,5.5,12.4]
[null,null,null,null,null,null,null,null,null,null,"Annual",{"$f":"AVERAGE(L7:L18)","v":6.5866666666666669},{"$f":"MAX(M7:M18)","v":180.8},{"$f":"AVERAGE(N7:N18)","v":6.6470833333333319},{"$f":"MAX(O7:O18)","v":27.7}]
[]
[null,null,null,null,null,null,null,null,null,{"$f":"+A6","v":2022},"mg/Nm3","Monthly 1/2 hourly mean","Monthly 1/2 hourly maximum","Monthly daily mean","Monthly daily maximum"]
[null,null,null,null,null,null,null,null,null,"A2","Jan",15.98,149.94,15.95,30.5]
[null,null,null,null,null,null,null,null,null,null,"Feb",20.79,145.35,20.8,33.85]
[null,null,null,null,null,null,null,null,null,null,"Mar",22.27,111.34,22.49,30.79]
[null,null,null,null,null,null,null,null,null,null,"Apr",21.45,129.87,21.44,33.51]
[null,null,null,null,null,null,null,null,null,null,"May",11.2,175.7,12.14,21.5]
[null,null,null,null,null,null,null,null,null,null,"Jun",11.8,127.1,11.6,22.2]
[null,null,null,null,null,null,null,null,null,null,"Jul",5.7,125.3,5.6,11.3]
[null,null,null,null,null,null,null,null,null,null,"Aug",4.8,75.2,4.7,12.2]
[null,null,null,null,null,null,null,null,null,null,"Sep",5.6,134.9,5.6,11.3]
[null,null,null,null,null,null,null,null,null,null,"Oct",5.7,125.5,5.6,10.9]
[null,null,null,null,null,null,null,null,null,null,"Nov",5.6,155.5,5.4,11.1]
[null,null,null,null,null,null,null,null,null,null,"Dec",7.7,171.3,7.7,16.2]
[null,null,null,null,null,null,null,null,null,null,"Annual",{"$f":"AVERAGE(L22:L33)","v":11.549166666666665},{"$f":"MAX(M22:M33)","v":175.7},{"$f":"AVERAGE(N22:N33)","v":11.584999999999996},{"$f":"MAX(O22:O33)","v":33.85}]
[]
[null,null,null,null,null,null,null,null,null,{"$f":"+A6","v":2022},"mg/Nm3","Monthly 1/2 hourly mean","Monthly 1/2 hourly maximum","Monthly daily mean","Monthly daily maximum"]
[null,null,null,null,null,null,null,null,null,"A3","Jan"]
[null,null,null,null,null,null,null,null,null,null,"Feb"]
[null,null,null,null,null,null,null,null,null,null,"Mar"]
[null,null,null,null,null,null,null,null,null,null,"Apr"]
[null,null,null,null,null,null,null,null,null,null,"May"]
[null,null,null,null,null,null,null,null,null,null,"Jun"]
[null,null,null,null,null,null,null,null,null,null,"Jul"]
[null,null,null,null,null,null,null,null,null,null,"Aug"]
[null,null,null,null,null,null,null,null,null,null,"Sep"]
[null,null,null,null,null,null,null,null,null,null,"Oct"]
[null,null,null,null,null,null,null,null,null,null,"Nov"]
["Comments :",null,null,null,null,null,null,null,null,null,"Dec"]
["The CEM data submitted from May to December 2022 have not been subject to BS EN 14181:2014 QAL2 calibration. The report will be re-submitted to the Environment Agency with the calibrated data once those are available therefore the data submitted above in this report are subject to change.",null,null,null,null,null,null,null,null,null,"Annual",{"$f":"AVERAGE(L37:L48)","v":{"$error":"#DIV/0!"}},{"$f":"MAX(M37:M48)","v":0},{"$f":"AVERAGE(N37:N48)","v":{"$error":"#DIV/0!"}},{"$f":"MAX(O37:O48)","v":0}]
[]
[null,null,null,null,null,null,null,null,null,{"$f":"+A6","v":2022},"mg/Nm3","Monthly 1/2 hourly mean","Monthly 1/2 hourly maximum","Monthly daily mean","Monthly daily maximum"]
[null,null,null,null,null,null,null,null,null,"A4","Jan"]
[null,null,null,null,null,null,null,null,null,null,"Feb"]
[null,null,null,null,null,null,null,null,null,null,"Mar"]
[null,null,null,null,null,null,null,null,null,null,"Apr"]
[null,null,null,null,null,null,null,null,null,null,"May"]
[null,null,null,null,null,null,null,null,null,null,"Jun"]
[null,null,null,null,null,null,null,null,null,null,"Jul"]
[null,null,null,null,null,null,null,null,null,null,"Aug"]
[null,null,null,null,null,null,null,null,null,null,"Sep"]
[null,null,null,null,null,null,null,null,null,null,"Oct"]
[null,null,null,null,null,null,null,null,null,null,"Nov"]
[null,null,null,null,null,null,null,null,null,null,"Dec"]
[null,null,null,null,null,null,null,null,null,null,"Annual",{"$f":"AVERAGE(L52:L63)","v":{"$error":"#DIV/0!"}},{"$f":"MAX(M52:M63)","v":0},{"$f":"AVERAGE(N52:N63)","v":{"$error":"#DIV/0!"}},{"$f":"MAX(O52:O63)","v":0}]
[]
[null,null,null,null,null,null,null,null,null,{"$f":"+A6","v":2022},"mg/Nm3","Monthly 1/2 hourly mean","Monthly 1/2 hourly maximum","Monthly daily mean","Monthly daily maximum"]
[null,null,null,null,null,null,null,null,null,"A5","Jan"]
[null,null,null,null,null,null,null,null,null,null,"Feb"]
[null,null,null,null,null,null,null,null,null,null,"Mar"]
[null,null,null,null,null,null,null,null,null,null,"Apr"]
[null,null,null,null,null,null,null,null,null,null,"May"]
[null,null,null,null,null,null,null,null,null,null,"Jun"]
[null,null,null,null,null,null,null,null,null,null,"Jul"]
[null,null,null,null,null,null,null,null,null,null,"Aug"]
[null,null,null,null,null,null,null,null,null,null,"Sep"]
[null,null,null,null,null,null,null,null,null,null,"Oct"]
[null,null,null,null,null,null,null,null,null,null,"Nov"]
[null,null,null,null,null,null,null,null,null,null,"Dec"]
[null,null,null,null,null,null,null,null,null,null,"Annual",{"$f":"AVERAGE(L67:L78)","v":{"$error":"#DIV/0!"}},{"$f":"MAX(M67:M78)","v":0},{"$f":"AVERAGE(N67:N78)","v":{"$error":"#DIV/0!"}},{"$f":"MAX(O67:O78)","v":0}]

{"sheet":"NOx","index":17,"n_rows":79,"n_cols":17,"rows_kept":79,"cut":false,"hidden":false,"merged":[[3,16,7,18],[9,16,11,18],[12,16,15,18],[66,9,78,9],[4,1,4,3],[4,4,4,6],[4,9,4,14],[6,9,18,9],[21,9,33,9],[36,9,48,9],[47,0,47,6],[48,0,51,6],[51,9,63,9]]}
[{"$f":"+'Cover Page'!$B$29","v":"Annual Performance Report 2022"},null,null,null,{"$f":"+'Cover Page'!$B$33","v":"Tyseley Energy from Waste Plant"}]
[]
["Monitoring of Oxides of Nitrogen emissions",null,null,"Whole Installation",null,null,"See  Notes in Cell Q3",null,null,{"$f":"+A3","v":"Monitoring of Oxides of Nitrogen emissions"},null,null,null,"Per Combustion Line",null,null,"Notes:"]
[null,null,null,null,null,null,null,null,null,null,null,null,null,null,null,null,"User to add logic to complete Whole installation, Table A5:G18. From the data in Per Combustion Line, Table J6:O79, subject to No. of lines installed"]
["mg/Nm3","1/2 Hourly Reference Periods",null,null,"Daily Reference Periods"]
[{"$f":"+'Cover Page'!C39","v":2022},"1/2 hourly NOx ELV","Monthly 1/2 hourly mean","Highest 1/2 hourly maximum","Daily NOx ELV","Monthly daily mean","Highest daily maximum",null,null,{"$f":"+A6","v":2022},"mg/Nm3","Monthly 1/2 hourly mean","Monthly 1/2 hourly maximum","Monthly daily mean","Monthly daily maximum"]
["Jan",400,{"$f":"AVERAGE(L7,L22)","v":164.26499999999999},{"$f":"MAX(M7,M22)","v":257.01},200,{"$f":"AVERAGE(N7,N22)","v":164.32999999999998},{"$f":"MAX(O7,O22)","v":180.66},null,null,"A1","Jan",159.63,197.33,159.82,180.66]
["Feb",400,161.76999999999998,{"$f":"MAX(M8,M23)","v":240.11},200,161.78,{"$f":"MAX(O8,O23)","v":170.92},null,null,null,"Feb",163.78,222.55,163.79,170.92]
["Mar",400,165.14499999999998,227.4,200,165.13,184.74,null,null,null,"Mar",162,212.72,161.97999999999999,184.74,null,"Whole Installation table A5:G18:"]
["Apr",400,171.83500000000001,253.32,200,172.03,184.44,null,null,null,"Apr",170.31,239.84,170.71,184.44,null,"Mean: for 1/2 hourly and daily periods calculate mean of values across all operational combustion lines for the month"]
["May",400,160.85,308.7,200,162.05500000000001,183.4,null,null,null,"May",159.1,230.01,160.46,174]
["Jun",400,166.3,264.7,200,165.75,183.2,null,null,null,"Jun",163.30000000000001,246.4,163,175.8]
["Jul",400,166.3,261.8,200,166.4,180.3,null,null,null,"Jul",164.8,261.8,165,177.6,null,"Maximum: for 1/2 hourly and daily periods use the highest value across all operational combustion lines for the month"]
["Aug",400,163.60000000000002,257,200,163.75,176.8,null,null,null,"Aug",162.80000000000001,257,162.80000000000001,176.8]
["Sep",400,164.35000000000002,265.8,200,164.25,168.3,null,null,null,"Sep",164.4,223.8,164.3,167.1]
["Oct",400,164.75,257,200,164.7,173.9,null,null,null,"Oct",164,256.2,164,169.1]
["Nov",400,162.30000000000001,319,200,162.14999999999998,170.7,null,null,null,"Nov",161.69999999999999,319,161.6,168]
["Dec",400,161.25,313.2,200,161.15,171.7,null,null,null,"Dec",161.30000000000001,242.4,161.30000000000001,170]
[null,null,null,null,null,null,null,null,null,null,"Annual",{"$f":"AVERAGE(L7:L18)","v":163.09333333333333},{"$f":"MAX(M7:M18)","v":319},{"$f":"AVERAGE(N7:N18)","v":163.22999999999999},{"$f":"MAX(O7:O18)","v":184.74}]
[]
[null,null,null,null,null,null,null,null,null,{"$f":"+A6","v":2022},"mg/Nm3","Monthly 1/2 hourly mean","Monthly 1/2 hourly maximum","Monthly daily mean","Monthly daily maximum"]
[null,null,null,null,null,null,null,null,null,"A2","Jan",168.9,257.01,168.84,179.57]
[null,null,null,null,null,null,null,null,null,null,"Feb",159.76,240.11,159.77000000000001,170.87]
[null,null,null,null,null,null,null,null,null,null,"Mar",168.29,227.4,168.28,181.31]
[null,null,null,null,null,null,null,null,null,null,"Apr",173.36,253.32,173.35,184.06]
[null,null,null,null,null,null,null,null,null,null,"May",162.6,308.7,163.65,183.4]
[null,null,null,null,null,null,null,null,null,null,"Jun",169.3,264.7,168.5,183.2]
[null,null,null,null,null,null,null,null,null,null,"Jul",167.8,251.7,167.8,180.3]
[null,null,null,null,null,null,null,null,null,null,"Aug",164.4,253.8,164.7,175.2]
[null,null,null,null,null,null,null,null,null,null,"Sep",164.3,265.8,164.2,168.3]
[null,null,null,null,null,null,null,null,null,null,"Oct",165.5,257,165.4,173.9]
[null,null,null,null,null,null,null,null,null,null,"Nov",162.9,302.8,162.69999999999999,170.7]
[null,null,null,null,null,null,null,null,null,null,"Dec",161.19999999999999,313.2,161,171.7]
[null,null,null,null,null,null,null,null,null,null,"Annual",{"$f":"AVERAGE(L22:L33)","v":165.69250000000002},{"$f":"MAX(M22:M33)","v":313.2},{"$f":"AVERAGE(N22:N33)","v":165.68250000000003},{"$f":"MAX(O22:O33)","v":184.06}]
[]
[null,null,null,null,null,null,null,null,null,{"$f":"+A6","v":2022},"mg/Nm3","Monthly 1/2 hourly mean","Monthly 1/2 hourly maximum","Monthly daily mean","Monthly daily maximum"]
[null,null,null,null,null,null,null,null,null,"A3","Jan"]
[null,null,null,null,null,null,null,null,null,null,"Feb"]
[null,null,null,null,null,null,null,null,null,null,"Mar"]
[null,null,null,null,null,null,null,null,null,null,"Apr"]
[null,null,null,null,null,null,null,null,null,null,"May"]
[null,null,null,null,null,null,null,null,null,null,"Jun"]
[null,null,null,null,null,null,null,null,null,null,"Jul"]
[null,null,null,null,null,null,null,null,null,null,"Aug"]
[null,null,null,null,null,null,null,null,null,null,"Sep"]
[null,null,null,null,null,null,null,null,null,null,"Oct"]
[null,null,null,null,null,null,null,null,null,null,"Nov"]
["Comments :",null,null,null,null,null,null,null,null,null,"Dec"]
["The CEM data submitted from May to December 2022 have not been subject to BS EN 14181:2014 QAL2 calibration. The report will be re-submitted to the Environment Agency with the calibrated data once those are available therefore the data submitted above in this report are subject to change.",null,null,null,null,null,null,null,null,null,"Annual",{"$f":"AVERAGE(L37:L48)","v":{"$error":"#DIV/0!"}},{"$f":"MAX(M37:M48)","v":0},{"$f":"AVERAGE(N37:N48)","v":{"$error":"#DIV/0!"}},{"$f":"MAX(O37:O48)","v":0}]
[]
[null,null,null,null,null,null,null,null,null,{"$f":"+A6","v":2022},"mg/Nm3","Monthly 1/2 hourly mean","Monthly 1/2 hourly maximum","Monthly daily mean","Monthly daily maximum"]
[null,null,null,null,null,null,null,null,null,"A4","Jan"]
[null,null,null,null,null,null,null,null,null,null,"Feb"]
[null,null,null,null,null,null,null,null,null,null,"Mar"]
[null,null,null,null,null,null,null,null,null,null,"Apr"]
[null,null,null,null,null,null,null,null,null,null,"May"]
[null,null,null,null,null,null,null,null,null,null,"Jun"]
[null,null,null,null,null,null,null,null,null,null,"Jul"]
[null,null,null,null,null,null,null,null,null,null,"Aug"]
[null,null,null,null,null,null,null,null,null,null,"Sep"]
[null,null,null,null,null,null,null,null,null,null,"Oct"]
[null,null,null,null,null,null,null,null,null,null,"Nov"]
[null,null,null,null,null,null,null,null,null,null,"Dec"]
[null,null,null,null,null,null,null,null,null,null,"Annual",{"$f":"AVERAGE(L52:L63)","v":{"$error":"#DIV/0!"}},{"$f":"MAX(M52:M63)","v":0},{"$f":"AVERAGE(N52:N63)","v":{"$error":"#DIV/0!"}},{"$f":"MAX(O52:O63)","v":0}]
[]
[null,null,null,null,null,null,null,null,null,{"$f":"+A6","v":2022},"mg/Nm3","Monthly 1/2 hourly mean","Monthly 1/2 hourly maximum","Monthly daily mean","Monthly daily maximum"]
[null,null,null,null,null,null,null,null,null,"A5","Jan"]
[null,null,null,null,null,null,null,null,null,null,"Feb"]
[null,null,null,null,null,null,null,null,null,null,"Mar"]
[null,null,null,null,null,null,null,null,null,null,"Apr"]
[null,null,null,null,null,null,null,null,null,null,"May"]
[null,null,null,null,null,null,null,null,null,null,"Jun"]
[null,null,null,null,null,null,null,null,null,null,"Jul"]
[null,null,null,null,null,null,null,null,null,null,"Aug"]
[null,null,null,null,null,null,null,null,null,null,"Sep"]
[null,null,null,null,null,null,null,null,null,null,"Oct"]
[null,null,null,null,null,null,null,null,null,null,"Nov"]
[null,null,null,null,null,null,null,null,null,null,"Dec"]
[null,null,null,null,null,null,null,null,null,null,"Annual",{"$f":"AVERAGE(L67:L78)","v":{"$error":"#DIV/0!"}},{"$f":"MAX(M67:M78)","v":0},{"$f":"AVERAGE(N67:N78)","v":{"$error":"#DIV/0!"}},{"$f":"MAX(O67:O78)","v":0}]

{"sheet":"TOC","index":18,"n_rows":79,"n_cols":17,"rows_kept":79,"cut":false,"hidden":false,"merged":[[3,16,7,18],[9,16,11,18],[12,16,15,18],[66,9,78,9],[4,1,4,3],[4,4,4,6],[4,9,4,14],[6,9,18,9],[21,9,33,9],[36,9,48,9],[47,0,47,6],[48,0,51,6],[51,9,63,9]]}
[{"$f":"+'Cover Page'!$B$29","v":"Annual Performance Report 2022"},null,null,null,{"$f":"+'Cover Page'!$B$33","v":"Tyseley Energy from Waste Plant"}]
[]
["Monitoring of Total organic carbon emissions",null,null,"Whole Installation",null,null,"See  Notes in Cell Q3",null,null,{"$f":"+A3","v":"Monitoring of Total organic carbon emissions"},null,null,null,"Per Combustion Line",null,null,"Notes:"]
[null,null,null,null,null,null,null,null,null,null,null,null,null,null,null,null,"User to add logic to complete Whole installation, Table A5:G18. From the data in Per Combustion Line, Table J6:O79, subject to No. of lines installed"]
["mg/Nm3","1/2 Hourly Reference Periods",null,null,"Daily Reference Periods"]
[{"$f":"+'Cover Page'!C39","v":2022},"1/2 hourly TOC ELV","Monthly 1/2 hourly mean","Highest 1/2 hourly maximum","Daily TOC ELV","Monthly daily mean","Highest daily maximum",null,null,{"$f":"+A6","v":2022},"mg/Nm3","Monthly 1/2 hourly mean","Monthly 1/2 hourly maximum","Monthly daily mean","Monthly daily maximum"]
["Jan",20,{"$f":"AVERAGE(L7,L22)","v":0.39500000000000002},{"$f":"MAX(M7,M22)","v":4.38},10,{"$f":"AVERAGE(N7,N22)","v":0.4},{"$f":"MAX(O7,O22)","v":0.97},null,null,"A1","Jan",0.14000000000000001,1.84,0.14000000000000001,0.28999999999999998]
["Feb",20,0.39500000000000002,{"$f":"MAX(M8,M23)","v":1.69},10,0.39500000000000002,{"$f":"MAX(O8,O23)","v":0.89},null,null,null,"Feb",0.18,0.97,0.18,0.56999999999999995]
["Mar",20,0.52,5.45,10,0.505,1.1599999999999999,null,null,null,"Mar",0.38,3.02,0.38,1.05,null,"Whole Installation table A5:G18:"]
["Apr",20,0.68,8.74,10,0.67500000000000004,1.6,null,null,null,"Apr",0.33,7.14,0.32,0.9,null,"Mean: for 1/2 hourly and daily periods calculate mean of values across all operational combustion lines for the month"]
["May",20,0.65,14.3,10,0.67749999999999999,2,null,null,null,"May",0.4,2.2000000000000002,0.38500000000000001,0.7]
["Jun",20,0.5,6.7,10,0.5,0.9,null,null,null,"Jun",0.6,6.7,0.6,0.9]
["Jul",20,0.5,10.8,10,0.45,0.9,null,null,null,"Jul",0.5,6.1,0.5,0.7,null,"Maximum: for 1/2 hourly and daily periods use the highest value across all operational combustion lines for the month"]
["Aug",20,0.55000000000000004,10.199999999999999,10,0.5,1.1000000000000001,null,null,null,"Aug",0.5,2.5,0.5,0.6]
["Sep",20,0.7,7.2,10,0.6,4.3,null,null,null,"Sep",0.6,2.9,0.5,0.8]
["Oct",20,0.45,6.2,10,0.45,1,null,null,null,"Oct",0.5,6.2,0.5,1]
["Nov",20,0.45,5.6,10,0.4,1.1000000000000001,null,null,null,"Nov",0.5,5.6,0.4,0.9]
["Dec",20,0.55000000000000004,9.9,10,0.45,1.6,null,null,null,"Dec",0.6,6.9,0.5,1.6]
[null,null,null,null,null,null,null,null,null,null,"Annual",{"$f":"AVERAGE(L7:L18)","v":0.43583333333333335},{"$f":"MAX(M7:M18)","v":7.14},{"$f":"AVERAGE(N7:N18)","v":0.40875},{"$f":"MAX(O7:O18)","v":1.6}]
[]
[null,null,null,null,null,null,null,null,null,{"$f":"+A6","v":2022},"mg/Nm3","Monthly 1/2 hourly mean","Monthly 1/2 hourly maximum","Monthly daily mean","Monthly daily maximum"]
[null,null,null,null,null,null,null,null,null,"A2","Jan",0.65,4.38,0.66,0.97]
[null,null,null,null,null,null,null,null,null,null,"Feb",0.61,1.69,0.61,0.89]
[null,null,null,null,null,null,null,null,null,null,"Mar",0.66,5.45,0.63,1.1599999999999999]
[null,null,null,null,null,null,null,null,null,null,"Apr",1.03,8.74,1.03,1.6]
[null,null,null,null,null,null,null,null,null,null,"May",0.9,14.3,0.97,2]
[null,null,null,null,null,null,null,null,null,null,"Jun",0.4,2.9,0.4,0.7]
[null,null,null,null,null,null,null,null,null,null,"Jul",0.5,10.8,0.4,0.9]
[null,null,null,null,null,null,null,null,null,null,"Aug",0.6,10.199999999999999,0.5,1.1000000000000001]
[null,null,null,null,null,null,null,null,null,null,"Sep",0.8,7.2,0.7,4.3]
[null,null,null,null,null,null,null,null,null,null,"Oct",0.4,6.1,0.4,0.7]
[null,null,null,null,null,null,null,null,null,null,"Nov",0.4,5.4,0.4,1.1000000000000001]
[null,null,null,null,null,null,null,null,null,null,"Dec",0.5,9.9,0.4,0.7]
[null,null,null,null,null,null,null,null,null,null,"Annual",{"$f":"AVERAGE(L22:L33)","v":0.62083333333333335},{"$f":"MAX(M22:M33)","v":14.3},{"$f":"AVERAGE(N22:N33)","v":0.59166666666666679},{"$f":"MAX(O22:O33)","v":4.3}]
[]
[null,null,null,null,null,null,null,null,null,{"$f":"+A6","v":2022},"mg/Nm3","Monthly 1/2 hourly mean","Monthly 1/2 hourly maximum","Monthly daily mean","Monthly daily maximum"]
[null,null,null,null,null,null,null,null,null,"A3","Jan"]
[null,null,null,null,null,null,null,null,null,null,"Feb"]
[null,null,null,null,null,null,null,null,null,null,"Mar"]
[null,null,null,null,null,null,null,null,null,null,"Apr"]
[null,null,null,null,null,null,null,null,null,null,"May"]
[null,null,null,null,null,null,null,null,null,null,"Jun"]
[null,null,null,null,null,null,null,null,null,null,"Jul"]
[null,null,null,null,null,null,null,null,null,null,"Aug"]
[null,null,null,null,null,null,null,null,null,null,"Sep"]
[null,null,null,null,null,null,null,null,null,null,"Oct"]
[null,null,null,null,null,null,null,null,null,null,"Nov"]
["Comments :",null,null,null,null,null,null,null,null,null,"Dec"]
["The CEM data submitted from May to December 2022 have not been subject to BS EN 14181:2014 QAL2 calibration. The report will be re-submitted to the Environment Agency with the calibrated data once those are available therefore the data submitted above in this report are subject to change.",null,null,null,null,null,null,null,null,null,"Annual",{"$f":"AVERAGE(L37:L48)","v":{"$error":"#DIV/0!"}},{"$f":"MAX(M37:M48)","v":0},{"$f":"AVERAGE(N37:N48)","v":{"$error":"#DIV/0!"}},{"$f":"MAX(O37:O48)","v":0}]
[]
[null,null,null,null,null,null,null,null,null,{"$f":"+A6","v":2022},"mg/Nm3","Monthly 1/2 hourly mean","Monthly 1/2 hourly maximum","Monthly daily mean","Monthly daily maximum"]
[null,null,null,null,null,null,null,null,null,"A4","Jan"]
[null,null,null,null,null,null,null,null,null,null,"Feb"]
[null,null,null,null,null,null,null,null,null,null,"Mar"]
[null,null,null,null,null,null,null,null,null,null,"Apr"]
[null,null,null,null,null,null,null,null,null,null,"May"]
[null,null,null,null,null,null,null,null,null,null,"Jun"]
[null,null,null,null,null,null,null,null,null,null,"Jul"]
[null,null,null,null,null,null,null,null,null,null,"Aug"]
[null,null,null,null,null,null,null,null,null,null,"Sep"]
[null,null,null,null,null,null,null,null,null,null,"Oct"]
[null,null,null,null,null,null,null,null,null,null,"Nov"]
[null,null,null,null,null,null,null,null,null,null,"Dec"]
[null,null,null,null,null,null,null,null,null,null,"Annual",{"$f":"AVERAGE(L52:L63)","v":{"$error":"#DIV/0!"}},{"$f":"MAX(M52:M63)","v":0},{"$f":"AVERAGE(N52:N63)","v":{"$error":"#DIV/0!"}},{"$f":"MAX(O52:O63)","v":0}]
[]
[null,null,null,null,null,null,null,null,null,{"$f":"+A6","v":2022},"mg/Nm3","Monthly 1/2 hourly mean","Monthly 1/2 hourly maximum","Monthly daily mean","Monthly daily maximum"]
[null,null,null,null,null,null,null,null,null,"A5","Jan"]
[null,null,null,null,null,null,null,null,null,null,"Feb"]
[null,null,null,null,null,null,null,null,null,null,"Mar"]
[null,null,null,null,null,null,null,null,null,null,"Apr"]
[null,null,null,null,null,null,null,null,null,null,"May"]
[null,null,null,null,null,null,null,null,null,null,"Jun"]
[null,null,null,null,null,null,null,null,null,null,"Jul"]
[null,null,null,null,null,null,null,null,null,null,"Aug"]
[null,null,null,null,null,null,null,null,null,null,"Sep"]
[null,null,null,null,null,null,null,null,null,null,"Oct"]
[null,null,null,null,null,null,null,null,null,null,"Nov"]
[null,null,null,null,null,null,null,null,null,null,"Dec"]
[null,null,null,null,null,null,null,null,null,null,"Annual",{"$f":"AVERAGE(L67:L78)","v":{"$error":"#DIV/0!"}},{"$f":"MAX(M67:M78)","v":0},{"$f":"AVERAGE(N67:N78)","v":{"$error":"#DIV/0!"}},{"$f":"MAX(O67:O78)","v":0}]

{"sheet":"Particulates","index":19,"n_rows":79,"n_cols":17,"rows_kept":79,"cut":false,"hidden":false,"merged":[[3,16,7,18],[9,16,11,18],[12,16,15,18],[66,9,78,9],[4,1,4,3],[4,4,4,6],[4,9,4,14],[6,9,18,9],[21,9,33,9],[36,9,48,9],[47,0,47,6],[48,0,51,6],[51,9,63,9]]}
[{"$f":"+'Cover Page'!$B$29","v":"Annual Performance Report 2022"},null,null,null,{"$f":"+'Cover Page'!$B$33","v":"Tyseley Energy from Waste Plant"}]
[]
["Monitoring of Particulate matter emissions",null,null,"Whole Installation",null,null,"See  Notes in Cell Q3",null,null,{"$f":"+A3","v":"Monitoring of Particulate matter emissions"},null,null,null,"Per Combustion Line",null,null,"Notes:"]
[null,null,null,null,null,null,null,null,null,null,null,null,null,null,null,null,"User to add logic to complete Whole installation, Table A5:G18. From the data in Per Combustion Line, Table J6:O79, subject to No. of lines installed"]
["mg/Nm3","1/2 Hourly Reference Periods",null,null,"Daily Reference Periods"]
[{"$f":"+'Cover Page'!C39","v":2022},"1/2 hourly PM ELV","Monthly 1/2 hourly mean","Highest 1/2 hourly maximum","Daily PM ELV","Monthly daily mean","Highest daily maximum",null,null,{"$f":"+A6","v":2022},"mg/Nm3","Monthly 1/2 hourly mean","Monthly 1/2 hourly maximum","Monthly daily mean","Monthly daily maximum"]
["Jan",30,{"$f":"AVERAGE(L7,L22)","v":1.585},{"$f":"MAX(M7,M22)","v":26.9},10,{"$f":"AVERAGE(N7,N22)","v":1.595},{"$f":"MAX(O7,O22)","v":8.73},null,null,"A1","Jan",2.73,26.9,2.76,8.73]
["Feb",30,1.865,{"$f":"MAX(M8,M23)","v":23.12},10,1.865,{"$f":"MAX(O8,O23)","v":7.96},null,null,null,"Feb",3.41,23.12,3.41,7.96]
["Mar",30,3.7850000000000001,19.11,10,3.79,8.32,null,null,null,"Mar",6.59,19.11,6.59,8.32,null,"Whole Installation table A5:G18:"]
["Apr",30,4.3600000000000003,14.05,10,4.3949999999999996,9.31,null,null,null,"Apr",7.45,13.66,7.52,9.31,null,"Mean: for 1/2 hourly and daily periods calculate mean of values across all operational combustion lines for the month"]
["May",30,0.4,19.3,10,0.32999999999999996,4.7,null,null,null,"May",0.3,19.3,0.245,3.2]
["Jun",30,0.2,16,10,0.2,4.8,null,null,null,"Jun",0.4,16,0.4,4.8]
["Jul",30,0.2,0.9,10,0.15000000000000002,0.4,null,null,null,"Jul",0.2,0.9,0.1,0.3,null,"Maximum: for 1/2 hourly and daily periods use the highest value across all operational combustion lines for the month"]
["Aug",30,0.2,2,10,0.2,0.4,null,null,null,"Aug",0.2,2,0.2,0.4]
["Sep",30,0.4,11.4,10,0.35,3,null,null,null,"Sep",0.6,11.4,0.5,3]
["Oct",30,0.2,1.2,10,0.2,0.4,null,null,null,"Oct",0.2,1.2,0.2,0.4]
["Nov",30,0.15000000000000002,4.5,10,0.15000000000000002,0.4,null,null,null,"Nov",0.1,0.6,0.1,0.2]
["Dec",30,0.05,0.9,10,0.05,0.2,null,null,null,"Dec",0.1,0.9,0.1,0.2]
[null,null,null,null,null,null,null,null,null,null,"Annual",{"$f":"AVERAGE(L7:L18)","v":1.8566666666666667},{"$f":"MAX(M7:M18)","v":26.9},{"$f":"AVERAGE(N7:N18)","v":1.8437500000000002},{"$f":"MAX(O7:O18)","v":9.31}]
[]
[null,null,null,null,null,null,null,null,null,{"$f":"+A6","v":2022},"mg/Nm3","Monthly 1/2 hourly mean","Monthly 1/2 hourly maximum","Monthly daily mean","Monthly daily maximum"]
[null,null,null,null,null,null,null,null,null,"A2","Jan",0.44,1.66,0.43,0.74]
[null,null,null,null,null,null,null,null,null,null,"Feb",0.32,2.2400000000000002,0.32,0.68]
[null,null,null,null,null,null,null,null,null,null,"Mar",0.98,8.3800000000000008,0.99,3.61]
[null,null,null,null,null,null,null,null,null,null,"Apr",1.27,14.05,1.27,4.9400000000000004]
[null,null,null,null,null,null,null,null,null,null,"May",0.5,15.7,0.41499999999999998,4.7]
[null,null,null,null,null,null,null,null,null,null,"Jun",0,0,0,0]
[null,null,null,null,null,null,null,null,null,null,"Jul",0.2,0.4,0.2,0.4]
[null,null,null,null,null,null,null,null,null,null,"Aug",0.2,0.5,0.2,0.3]
[null,null,null,null,null,null,null,null,null,null,"Sep",0.2,0.4,0.2,0.3]
[null,null,null,null,null,null,null,null,null,null,"Oct",0.2,0.6,0.2,0.3]
[null,null,null,null,null,null,null,null,null,null,"Nov",0.2,4.5,0.2,0.4]
[null,null,null,null,null,null,null,null,null,null,"Dec",0,0.9,0,0.1]
[null,null,null,null,null,null,null,null,null,null,"Annual",{"$f":"AVERAGE(L22:L33)","v":0.37583333333333341},{"$f":"MAX(M22:M33)","v":15.7},{"$f":"AVERAGE(N22:N33)","v":0.36875000000000008},{"$f":"MAX(O22:O33)","v":4.9400000000000004}]
[]
[null,null,null,null,null,null,null,null,null,{"$f":"+A6","v":2022},"mg/Nm3","Monthly 1/2 hourly mean","Monthly 1/2 hourly maximum","Monthly daily mean","Monthly daily maximum"]
[null,null,null,null,null,null,null,null,null,"A3","Jan"]
[null,null,null,null,null,null,null,null,null,null,"Feb"]
[null,null,null,null,null,null,null,null,null,null,"Mar"]
[null,null,null,null,null,null,null,null,null,null,"Apr"]
[null,null,null,null,null,null,null,null,null,null,"May"]
[null,null,null,null,null,null,null,null,null,null,"Jun"]
[null,null,null,null,null,null,null,null,null,null,"Jul"]
[null,null,null,null,null,null,null,null,null,null,"Aug"]
[null,null,null,null,null,null,null,null,null,null,"Sep"]
[null,null,null,null,null,null,null,null,null,null,"Oct"]
[null,null,null,null,null,null,null,null,null,null,"Nov"]
["Comments :",null,null,null,null,null,null,null,null,null,"Dec"]
["The CEM data submitted from May to December 2022 have not been subject to BS EN 14181:2014 QAL2 calibration. The report will be re-submitted to the Environment Agency with the calibrated data once those are available therefore the data submitted above in this report are subject to change.",null,null,null,null,null,null,null,null,null,"Annual",{"$f":"AVERAGE(L37:L48)","v":{"$error":"#DIV/0!"}},{"$f":"MAX(M37:M48)","v":0},{"$f":"AVERAGE(N37:N48)","v":{"$error":"#DIV/0!"}},{"$f":"MAX(O37:O48)","v":0}]
[]
[null,null,null,null,null,null,null,null,null,{"$f":"+A6","v":2022},"mg/Nm3","Monthly 1/2 hourly mean","Monthly 1/2 hourly maximum","Monthly daily mean","Monthly daily maximum"]
[null,null,null,null,null,null,null,null,null,"A4","Jan"]
[null,null,null,null,null,null,null,null,null,null,"Feb"]
[null,null,null,null,null,null,null,null,null,null,"Mar"]
[null,null,null,null,null,null,null,null,null,null,"Apr"]
[null,null,null,null,null,null,null,null,null,null,"May"]
[null,null,null,null,null,null,null,null,null,null,"Jun"]
[null,null,null,null,null,null,null,null,null,null,"Jul"]
[null,null,null,null,null,null,null,null,null,null,"Aug"]
[null,null,null,null,null,null,null,null,null,null,"Sep"]
[null,null,null,null,null,null,null,null,null,null,"Oct"]
[null,null,null,null,null,null,null,null,null,null,"Nov"]
[null,null,null,null,null,null,null,null,null,null,"Dec"]
[null,null,null,null,null,null,null,null,null,null,"Annual",{"$f":"AVERAGE(L52:L63)","v":{"$error":"#DIV/0!"}},{"$f":"MAX(M52:M63)","v":0},{"$f":"AVERAGE(N52:N63)","v":{"$error":"#DIV/0!"}},{"$f":"MAX(O52:O63)","v":0}]
[]
[null,null,null,null,null,null,null,null,null,{"$f":"+A6","v":2022},"mg/Nm3","Monthly 1/2 hourly mean","Monthly 1/2 hourly maximum","Monthly daily mean","Monthly daily maximum"]
[null,null,null,null,null,null,null,null,null,"A5","Jan"]
[null,null,null,null,null,null,null,null,null,null,"Feb"]
[null,null,null,null,null,null,null,null,null,null,"Mar"]
[null,null,null,null,null,null,null,null,null,null,"Apr"]
[null,null,null,null,null,null,null,null,null,null,"May"]
[null,null,null,null,null,null,null,null,null,null,"Jun"]
[null,null,null,null,null,null,null,null,null,null,"Jul"]
[null,null,null,null,null,null,null,null,null,null,"Aug"]
[null,null,null,null,null,null,null,null,null,null,"Sep"]
[null,null,null,null,null,null,null,null,null,null,"Oct"]
[null,null,null,null,null,null,null,null,null,null,"Nov"]
[null,null,null,null,null,null,null,null,null,null,"Dec"]
[null,null,null,null,null,null,null,null,null,null,"Annual",{"$f":"AVERAGE(L67:L78)","v":{"$error":"#DIV/0!"}},{"$f":"MAX(M67:M78)","v":0},{"$f":"AVERAGE(N67:N78)","v":{"$error":"#DIV/0!"}},{"$f":"MAX(O67:O78)","v":0}]

{"sheet":"CO 0.5hourly","index":20,"n_rows":79,"n_cols":17,"rows_kept":79,"cut":false,"hidden":true,"merged":[[3,16,7,18],[9,16,11,18],[12,16,15,18],[66,9,78,9],[4,1,4,3],[4,4,4,6],[4,9,4,14],[6,9,18,9],[21,9,33,9],[36,9,48,9],[47,0,47,6],[48,0,51,6],[51,9,63,9]]}
[{"$f":"+'Cover Page'!$B$29","v":"Annual Performance Report 2022"},null,null,null,{"$f":"+'Cover Page'!$B$33","v":"Tyseley Energy from Waste Plant"}]
[]
["Monitoring of Carbon Monoxide (half hourly)",null,null,"Whole Installation",null,null,"See  Notes in Cell Q3",null,null,{"$f":"+A3","v":"Monitoring of Carbon Monoxide (half hourly)"},null,null,null,"Per Combustion Line",null,null,"Notes:"]
[null,null,null,null,null,null,null,null,null,null,null,null,null,null,null,null,"User to add logic to complete Whole installation, Table A5:G18. From the data in Per Combustion Line, Table J6:O79, subject to No. of lines installed"]
["mg/Nm3","1/2 Hourly Reference Periods",null,null,"Daily Reference Periods"]
[{"$f":"+'Cover Page'!C39","v":2022},"1/2 hourly CO ELV","Monthly 1/2 hourly mean","Highest 1/2 hourly maximum","Daily CO ELV","Monthly daily mean","Highest daily maximum",null,null,{"$f":"+A6","v":2022},"mg/Nm3","Monthly 1/2 hourly mean","Monthly 1/2 hourly maximum","Monthly daily mean","Monthly daily maximum"]
["Jan",100,null,null,50,null,null,null,null,"A1","Jan"]
["Feb",{"$f":"+B7","v":100},null,null,{"$f":"+E7","v":50},null,null,null,null,null,"Feb"]
["Mar",{"$f":"+B8","v":100},null,null,{"$f":"+E8","v":50},null,null,null,null,null,"Mar",null,null,null,null,null,"Whole Installation table A5:G18:"]
["Apr",100,null,null,50,null,null,null,null,null,"Apr",null,null,null,null,null,"Mean: for 1/2 hourly and daily periods calculate mean of values across all operational combustion lines for the month"]
["May",100,null,null,50,null,null,null,null,null,"May"]
["Jun",100,null,null,50,null,null,null,null,null,"Jun"]
["Jul",100,null,null,50,null,null,null,null,null,"Jul",null,null,null,null,null,"Maximum: for 1/2 hourly and daily periods use the highest value across all operational combustion lines for the month"]
["Aug",100,null,null,50,null,null,null,null,null,"Aug"]
["Sep",100,null,null,50,null,null,null,null,null,"Sep"]
["Oct",100,null,null,50,null,null,null,null,null,"Oct"]
["Nov",100,null,null,50,null,null,null,null,null,"Nov"]
["Dec",100,null,null,50,null,null,null,null,null,"Dec"]
[null,null,null,null,null,null,null,null,null,null,"Annual",{"$f":"AVERAGE(L7:L18)","v":{"$error":"#DIV/0!"}},{"$f":"MAX(M7:M18)","v":0},{"$f":"AVERAGE(N7:N18)","v":{"$error":"#DIV/0!"}},{"$f":"MAX(O7:O18)","v":0}]
[]
[null,null,null,null,null,null,null,null,null,{"$f":"+A6","v":2022},"mg/Nm3","Monthly 1/2 hourly mean","Monthly 1/2 hourly maximum","Monthly daily mean","Monthly daily maximum"]
[null,null,null,null,null,null,null,null,null,"A2","Jan"]
[null,null,null,null,null,null,null,null,null,null,"Feb"]
[null,null,null,null,null,null,null,null,null,null,"Mar"]
[null,null,null,null,null,null,null,null,null,null,"Apr"]
[null,null,null,null,null,null,null,null,null,null,"May"]
[null,null,null,null,null,null,null,null,null,null,"Jun"]
[null,null,null,null,null,null,null,null,null,null,"Jul"]
[null,null,null,null,null,null,null,null,null,null,"Aug"]
[null,null,null,null,null,null,null,null,null,null,"Sep"]
[null,null,null,null,null,null,null,null,null,null,"Oct"]
[null,null,null,null,null,null,null,null,null,null,"Nov"]
[null,null,null,null,null,null,null,null,null,null,"Dec"]
[null,null,null,null,null,null,null,null,null,null,"Annual",{"$f":"AVERAGE(L22:L33)","v":{"$error":"#DIV/0!"}},{"$f":"MAX(M22:M33)","v":0},{"$f":"AVERAGE(N22:N33)","v":{"$error":"#DIV/0!"}},{"$f":"MAX(O22:O33)","v":0}]
[]
[null,null,null,null,null,null,null,null,null,{"$f":"+A6","v":2022},"mg/Nm3","Monthly 1/2 hourly mean","Monthly 1/2 hourly maximum","Monthly daily mean","Monthly daily maximum"]
[null,null,null,null,null,null,null,null,null,"A3","Jan"]
[null,null,null,null,null,null,null,null,null,null,"Feb"]
[null,null,null,null,null,null,null,null,null,null,"Mar"]
[null,null,null,null,null,null,null,null,null,null,"Apr"]
[null,null,null,null,null,null,null,null,null,null,"May"]
[null,null,null,null,null,null,null,null,null,null,"Jun"]
[null,null,null,null,null,null,null,null,null,null,"Jul"]
[null,null,null,null,null,null,null,null,null,null,"Aug"]
[null,null,null,null,null,null,null,null,null,null,"Sep"]
[null,null,null,null,null,null,null,null,null,null,"Oct"]
[null,null,null,null,null,null,null,null,null,null,"Nov"]
["Comments :",null,null,null,null,null,null,null,null,null,"Dec"]
[null,null,null,null,null,null,null,null,null,null,"Annual",{"$f":"AVERAGE(L37:L48)","v":{"$error":"#DIV/0!"}},{"$f":"MAX(M37:M48)","v":0},{"$f":"AVERAGE(N37:N48)","v":{"$error":"#DIV/0!"}},{"$f":"MAX(O37:O48)","v":0}]
[]
[null,null,null,null,null,null,null,null,null,{"$f":"+A6","v":2022},"mg/Nm3","Monthly 1/2 hourly mean","Monthly 1/2 hourly maximum","Monthly daily mean","Monthly daily maximum"]
[null,null,null,null,null,null,null,null,null,"A4","Jan"]
[null,null,null,null,null,null,null,null,null,null,"Feb"]
[null,null,null,null,null,null,null,null,null,null,"Mar"]
[null,null,null,null,null,null,null,null,null,null,"Apr"]
[null,null,null,null,null,null,null,null,null,null,"May"]
[null,null,null,null,null,null,null,null,null,null,"Jun"]
[null,null,null,null,null,null,null,null,null,null,"Jul"]
[null,null,null,null,null,null,null,null,null,null,"Aug"]
[null,null,null,null,null,null,null,null,null,null,"Sep"]
[null,null,null,null,null,null,null,null,null,null,"Oct"]
[null,null,null,null,null,null,null,null,null,null,"Nov"]
[null,null,null,null,null,null,null,null,null,null,"Dec"]
[null,null,null,null,null,null,null,null,null,null,"Annual",{"$f":"AVERAGE(L52:L63)","v":{"$error":"#DIV/0!"}},{"$f":"MAX(M52:M63)","v":0},{"$f":"AVERAGE(N52:N63)","v":{"$error":"#DIV/0!"}},{"$f":"MAX(O52:O63)","v":0}]
[]
[null,null,null,null,null,null,null,null,null,{"$f":"+A6","v":2022},"mg/Nm3","Monthly 1/2 hourly mean","Monthly 1/2 hourly maximum","Monthly daily mean","Monthly daily maximum"]
[null,null,null,null,null,null,null,null,null,"A5","Jan"]
[null,null,null,null,null,null,null,null,null,null,"Feb"]
[null,null,null,null,null,null,null,null,null,null,"Mar"]
[null,null,null,null,null,null,null,null,null,null,"Apr"]
[null,null,null,null,null,null,null,null,null,null,"May"]
[null,null,null,null,null,null,null,null,null,null,"Jun"]
[null,null,null,null,null,null,null,null,null,null,"Jul"]
[null,null,null,null,null,null,null,null,null,null,"Aug"]
[null,null,null,null,null,null,null,null,null,null,"Sep"]
[null,null,null,null,null,null,null,null,null,null,"Oct"]
[null,null,null,null,null,null,null,null,null,null,"Nov"]
[null,null,null,null,null,null,null,null,null,null,"Dec"]
[null,null,null,null,null,null,null,null,null,null,"Annual",{"$f":"AVERAGE(L67:L78)","v":{"$error":"#DIV/0!"}},{"$f":"MAX(M67:M78)","v":0},{"$f":"AVERAGE(N67:N78)","v":{"$error":"#DIV/0!"}},{"$f":"MAX(O67:O78)","v":0}]

{"sheet":"CO 95% 10 min","index":21,"n_rows":79,"n_cols":19,"rows_kept":79,"cut":false,"hidden":false,"merged":[[3,18,7,20],[9,18,11,20],[12,18,15,20],[66,10,78,10],[4,1,4,4],[4,5,4,7],[4,10,4,16],[6,10,18,10],[21,10,33,10],[36,10,48,10],[47,0,47,7],[48,0,51,7],[51,10,63,10],[52,0,55,7]]}
[{"$f":"+'Cover Page'!$B$29","v":"Annual Performance Report 2022"},null,null,null,{"$f":"+'Cover Page'!$B$33","v":"Tyseley Energy from Waste Plant"}]
[]
["Monitoring of Carbon Monoxide (10-minute avg)",null,null,null,"Whole Installation",null,null,"See  Notes in Cell S3",null,{"$f":"+A3","v":"Monitoring of Carbon Monoxide (10-minute avg)"},null,null,null,null,"Per Combustion Line",null,"Notes:",null,"Notes:"]
[null,null,null,null,null,null,null,null,null,null,null,null,null,null,null,null,null,null,"User to add logic to complete Whole installation, Table A5:H18. From the data in Per Combustion Line, Table K6:Q79, subject to No. of lines installed"]
["mg/Nm3","10-minute Reference Periods",null,null,null,"Daily Reference Periods"]
[{"$f":"+'Cover Page'!C39","v":2022},"95%ile 10-min avg CO ELV","95%ile 10-min avg maximum","Monthly CO 10-min avg mean","10-min avg maximum","Daily CO ELV","Monthly daily mean","Highest daily maximum",null,null,{"$f":"+A6","v":2022},"mg/Nm3","95%ile 10-min avg maximum","Monthly CO 10-min avg mean","10-min avg maximum","Monthly daily mean","Monthly daily maximum"]
["Jan",150,{"$f":"MAX(M7,M22)","v":69.599999999999994},{"$f":"AVERAGE(N7,N22)","v":10.23},{"$f":"MAX(O7,O22)","v":337.76},50,{"$f":"AVERAGE(P7,P22)","v":10.210000000000001},{"$f":"MAX(Q7,Q22)","v":18.93},null,null,"A1","Jan",69.599999999999994,8.67,235.28,8.74,18.93]
["Feb",{"$f":"+B7","v":150},{"$f":"MAX(M8,M23)","v":82.2},{"$f":"AVERAGE(N8,N23)","v":11.15},{"$f":"MAX(O8,O23)","v":360.32},{"$f":"+F7","v":50},{"$f":"AVERAGE(P8,P23)","v":11.15},{"$f":"MAX(Q8,Q23)","v":21.28},null,null,null,"Feb",82.2,11.07,360.32,11.07,21.28]
["Mar",{"$f":"+B8","v":150},81.400000000000006,11.965,258.27,{"$f":"+F8","v":50},12.100000000000001,24.38,null,null,null,"Mar",64.900000000000006,8.9700000000000006,258.27,8.9700000000000006,23.41,null,"Whole Installation table A5:H18:"]
["Apr",150,90.5,14.5,523.03,50,14.355,32.76,null,null,null,"Apr",51.7,7.64,232.94,7.35,13.85,null,"Mean: for 10-min and daily periods use average of all operational combustion lines."]
["May",150,71.2,13.45,395.7,50,14.445,21.8,null,null,null,"May",49.8,11.5,260.5,13.19,20.2]
["Jun",150,98.9,13.25,634.6,50,13.1,26.8,null,null,null,"Jun",95.3,15.2,346.8,15.2,26.8]
["Jul",150,71,8.6,716.7,50,8.6,18.899999999999999,null,null,null,"Jul",71,9.1,412.1,9.1,18.899999999999999,null,"Maximum: for 10-min and daily periods use the highest of all operational combustion lines in any month."]
["Aug",150,47.2,8.0500000000000007,867.6,50,7.95,13.5,null,null,null,"Aug",16.399999999999999,7.1,867.6,7,13.5]
["Sep",150,68.8,9.3999999999999986,1325.9,50,9.35,24.2,null,null,null,"Sep",61.4,8.6999999999999993,540.79999999999995,8.6,21]
["Oct",150,51.6,9.1999999999999993,459.7,50,9.1999999999999993,15.9,null,null,null,"Oct",51.6,9.6999999999999993,459.7,9.6999999999999993,15.9]
["Nov",150,81.7,10,497.2,50,9.9499999999999993,17.5,null,null,null,"Nov",81.7,9.9,241.8,9.9,16.8]
["Dec",150,52.4,9.65,1346.2,50,9.5500000000000007,21.6,null,null,null,"Dec",52.4,10,422.5,10,17.5]
[null,null,null,null,null,null,null,null,null,null,null,"Annual",{"$f":"AVERAGE(M7:M18)","v":62.333333333333343},{"$f":"AVERAGE(N7:N18)","v":9.7958333333333325},{"$f":"MAX(O7:O18)","v":867.6},{"$f":"AVERAGE(P7:P18)","v":9.9016666666666655},{"$f":"MAX(Q7:Q18)","v":26.8}]
[]
[null,null,null,null,null,null,null,null,null,null,{"$f":"+A6","v":2022},"mg/Nm3","95%ile 10-min avg maximum","Monthly CO 10-min avg mean","10-min avg maximum","Monthly daily mean","Monthly daily maximum"]
[null,null,null,null,null,null,null,null,null,null,"A2","Jan",46.8,11.79,337.76,11.68,16.850000000000001]
[null,null,null,null,null,null,null,null,null,null,null,"Feb",37.700000000000003,11.23,153.16,11.23,15.1]
[null,null,null,null,null,null,null,null,null,null,null,"Mar",81.400000000000006,14.96,237.57,15.23,24.38]
[null,null,null,null,null,null,null,null,null,null,null,"Apr",90.5,21.36,523.03,21.36,32.76]
[null,null,null,null,null,null,null,null,null,null,null,"May",71.2,15.4,395.7,15.7,21.8]
[null,null,null,null,null,null,null,null,null,null,null,"Jun",98.9,11.3,634.6,11,23.4]
[null,null,null,null,null,null,null,null,null,null,null,"Jul",52.6,8.1,716.7,8.1,14.6]
[null,null,null,null,null,null,null,null,null,null,null,"Aug",47.2,9,363.8,8.9,13]
[null,null,null,null,null,null,null,null,null,null,null,"Sep",68.8,10.1,1325.9,10.1,24.2]
[null,null,null,null,null,null,null,null,null,null,null,"Oct",50.6,8.6999999999999993,437.5,8.6999999999999993,14.6]
[null,null,null,null,null,null,null,null,null,null,null,"Nov",43.4,10.1,497.2,10,17.5]
[null,null,null,null,null,null,null,null,null,null,null,"Dec",34.700000000000003,9.3000000000000007,1346.2,9.1,21.6]
[null,null,null,null,null,null,null,null,null,null,null,"Annual",{"$f":"AVERAGE(M22:M33)","v":60.31666666666667},{"$f":"AVERAGE(N22:N33)","v":11.778333333333334},{"$f":"MAX(O22:O33)","v":1346.2},{"$f":"AVERAGE(P22:P33)","v":11.758333333333333},{"$f":"MAX(Q22:Q33)","v":32.76}]
[]
[null,null,null,null,null,null,null,null,null,null,{"$f":"+A6","v":2022},"mg/Nm3","95%ile 10-min avg maximum","Monthly CO 10-min avg mean","10-min avg maximum","Monthly daily mean","Monthly daily maximum"]
[null,null,null,null,null,null,null,null,null,null,"A3","Jan"]
[null,null,null,null,null,null,null,null,null,null,null,"Feb"]
[null,null,null,null,null,null,null,null,null,null,null,"Mar"]
[null,null,null,null,null,null,null,null,null,null,null,"Apr"]
[null,null,null,null,null,null,null,null,null,null,null,"May"]
[null,null,null,null,null,null,null,null,null,null,null,"Jun"]
[null,null,null,null,null,null,null,null,null,null,null,"Jul"]
[null,null,null,null,null,null,null,null,null,null,null,"Aug"]
[null,null,null,null,null,null,null,null,null,null,null,"Sep"]
[null,null,null,null,null,null,null,null,null,null,null,"Oct"]
[null,null,null,null,null,null,null,null,null,null,null,"Nov"]
["Comments :",null,null,null,null,null,null,null,null,null,null,"Dec"]
["Environment Agency explanatory note: The 10-minute average ELV is based on the “95th percentile”. In this case this means that 95% of the 10 minute averages in the relevant 24-hour period (i.e. 137) must be below 150 mg/Nm3, and 5% (i.e. 7) are allowed to be any value above 150 mg/Nm3. Whilst we expect operators to minimise CO emissions at all times, it is perfectly acceptable for the value of the maximum 10-minute average to be above 150 mg/Nm3, provided the 95th percentile ELV has been met for that period. ",null,null,null,null,null,null,null,null,null,null,"Annual",{"$f":"AVERAGE(M37:M48)","v":{"$error":"#DIV/0!"}},null,{"$f":"MAX(O37:O48)","v":0},{"$f":"AVERAGE(P37:P48)","v":{"$error":"#DIV/0!"}},{"$f":"MAX(Q37:Q48)","v":0}]
[]
[null,null,null,null,null,null,null,null,null,null,{"$f":"+A6","v":2022},"mg/Nm3","95%ile 10-min avg maximum","Monthly CO 10-min avg mean","10-min avg maximum","Monthly daily mean","Monthly daily maximum"]
[null,null,null,null,null,null,null,null,null,null,"A4","Jan"]
["The CEM data submitted from May to December 2022 have not been subject to BS EN 14181:2014 QAL2 calibration. The report will be re-submitted to the Environment Agency with the calibrated data once those are available therefore the data submitted above in this report are subject to change.",null,null,null,null,null,null,null,null,null,null,"Feb"]
[null,null,null,null,null,null,null,null,null,null,null,"Mar"]
[null,null,null,null,null,null,null,null,null,null,null,"Apr"]
[null,null,null,null,null,null,null,null,null,null,null,"May"]
[null,null,null,null,null,null,null,null,null,null,null,"Jun"]
[null,null,null,null,null,null,null,null,null,null,null,"Jul"]
[null,null,null,null,null,null,null,null,null,null,null,"Aug"]
[null,null,null,null,null,null,null,null,null,null,null,"Sep"]
[null,null,null,null,null,null,null,null,null,null,null,"Oct"]
[null,null,null,null,null,null,null,null,null,null,null,"Nov"]
[null,null,null,null,null,null,null,null,null,null,null,"Dec"]
[null,null,null,null,null,null,null,null,null,null,null,"Annual",{"$f":"AVERAGE(M52:M63)","v":{"$error":"#DIV/0!"}},null,{"$f":"MAX(O52:O63)","v":0},{"$f":"AVERAGE(P52:P63)","v":{"$error":"#DIV/0!"}},{"$f":"MAX(Q52:Q63)","v":0}]
[]
[null,null,null,null,null,null,null,null,null,null,{"$f":"+A6","v":2022},"mg/Nm3","95%ile 10-min avg maximum","Monthly CO 10-min avg mean","10-min avg maximum","Monthly daily mean","Monthly daily maximum"]
[null,null,null,null,null,null,null,null,null,null,"A5","Jan"]
[null,null,null,null,null,null,null,null,null,null,null,"Feb"]
[null,null,null,null,null,null,null,null,null,null,null,"Mar"]
[null,null,null,null,null,null,null,null,null,null,null,"Apr"]
[null,null,null,null,null,null,null,null,null,null,null,"May"]
[null,null,null,null,null,null,null,null,null,null,null,"Jun"]
[null,null,null,null,null,null,null,null,null,null,null,"Jul"]
[null,null,null,null,null,null,null,null,null,null,null,"Aug"]
[null,null,null,null,null,null,null,null,null,null,null,"Sep"]
[null,null,null,null,null,null,null,null,null,null,null,"Oct"]
[null,null,null,null,null,null,null,null,null,null,null,"Nov"]
[null,null,null,null,null,null,null,null,null,null,null,"Dec"]
[null,null,null,null,null,null,null,null,null,null,null,"Annual",{"$f":"AVERAGE(M67:M78)","v":{"$error":"#DIV/0!"}},null,{"$f":"MAX(O67:O78)","v":0},{"$f":"AVERAGE(P67:P78)","v":{"$error":"#DIV/0!"}},{"$f":"MAX(Q67:Q78)","v":0}]